{"text_format":"1","workbook":"xlsx","n_sheets":4,"sheets":["Rückstellungen","Mapping","SAKO_ALG","Datei_für_Flexiblen_Verbucher"],"not_rendered":{"charts":0,"images":2,"macros":1,"external_links":0,"defined_names":4,"comments":1,"pivot_tables":0},"unopened":[],"bounds":{"document_bytes":16777216,"sheet_cells":100000,"rows_first":2000,"rows_last":500,"rows_between":2000,"halvings":0,"cell_chars":16384,"cell_head_chars":4096},"cells_cut":0,"cells_raw":0,"read":"whole","date_system":"1900"}

{"sheet":"Rückstellungen","index":0,"n_rows":107,"n_cols":21,"rows_kept":107,"cut":false,"hidden":false,"merged":[[1,8,1,11]]}
["Vorlage zur Anpassung der Rückstellungen zum RA",null,null,null,null,null,null,null,null,null,null,null,null,null,"Rolle HBH hat Berechtigung für /CUERP/FIFLEX"]
["1. Daten aus FAGLB03 in orange Felder kopieren","2. Daten in allen grünen Felder anpassen",null,null,null,null,null,null,"3. Button klicken um CSV zu erstellen",null,null,null,null,null,"4. Verbuchung:","/CUERP/FIFLEX","Variante: RUECKSTELLUNG holen (CSV-Datei im 1. Feld auswählen) - F8 - Meldung: FLEX_THOHAR not created bestätigen und F3 (bis zur Einstiegsmaske zurück) Kontrolle über BTC Mappen (siehe rechts) oder FB03 Belegliste "]
["BUK","XXXX"]
["Daten aus GeOrg FAGLB03 Variante /Rückstellungen",null,null,"Sollstand eintragen",null,null,"FB50",null,"UB RA Rückstellungen",null,null,"Datum","2024-12-31",null,"Grüne Positionen in die FB50 kopieren",null,null,null,null,"Haben = Minusbetrag"]
["Layout /Rückstell ins Excel (oranger Bereich unten) kopieren",null,null,null,null,null,null,null,"Belegart","LG",null,null,null,null,"Gegenpositionen",null,null,null,null,"Soll = Plusbetrag"]
["SK","Fonds","Betrag (Minus)","Stand Soll (Plus)","Differenz",null,"SK",null,"S/H","Betrag",null,"Text","KSt",null,"SK",null,"S/H","Betrag",null,"Text","KSt"]
[384000,10000,-181200,null,{"$f":"C7+D7","v":-181200},null,{"$f":"A7","v":384000},null,{"$f":"IF(E7>0,\"Haben\",\"Soll\")","v":"Soll"},{"$f":"IF(I7=\"Haben\",IF(E7>0,E7,E7*-1)*-1,IF(E7>0,E7,E7*-1))","v":181200},null,{"$f":"\"UB RA \"&VLOOKUP(G7,SK_Mapping,4,FALSE)","v":"UB RA Jubiläum"},{"$f":"B7","v":10000},null,{"$f":"IF(E7>0,VLOOKUP(G7,SK_Mapping,2,FALSE),VLOOKUP(G7,SK_Mapping,3,FALSE))","v":817500},null,{"$f":"IF(I7=\"Haben\",\"Soll\",\"Haben\")","v":"Haben"},{"$f":"J7*-1","v":-181200},null,{"$f":"L7","v":"UB RA Jubiläum"},{"$f":"M7","v":10000}]
[384000,22000,-20700,null,{"$f":"C8+D8","v":-20700},null,{"$f":"A8","v":384000},null,{"$f":"IF(E8>0,\"Haben\",\"Soll\")","v":"Soll"},{"$f":"IF(I8=\"Haben\",IF(E8>0,E8,E8*-1)*-1,IF(E8>0,E8,E8*-1))","v":20700},null,"UB RA Jubiläum",{"$f":"B8","v":22000},null,817500,null,{"$f":"IF(I8=\"Haben\",\"Soll\",\"Haben\")","v":"Haben"},{"$f":"J8*-1","v":-20700},null,{"$f":"L8","v":"UB RA Jubiläum"},{"$f":"M8","v":22000}]
[384000,30000,-132100,null,-132100,null,384000,null,"Soll",132100,null,"UB RA Jubiläum",30000,null,817500,null,"Haben",-132100,null,"UB RA Jubiläum",30000]
[384000,163100,-20100,null,-20100,null,384000,null,"Soll",20100,null,"UB RA Jubiläum",163100,null,817500,null,"Haben",-20100,null,"UB RA Jubiläum",163100]
[384000,211100,-10440.81,null,-10440.81,null,384000,null,"Soll",10440.81,null,"UB RA Jubiläum",211100,null,817500,null,"Haben",-10440.81,null,"UB RA Jubiläum",211100]
[384000,211110,-8959.19,null,{"$f":"C12+D12","v":-8959.19},null,{"$f":"A12","v":384000},null,{"$f":"IF(E12>0,\"Haben\",\"Soll\")","v":"Soll"},{"$f":"IF(I12=\"Haben\",IF(E12>0,E12,E12*-1)*-1,IF(E12>0,E12,E12*-1))","v":8959.19},null,{"$f":"\"UB RA \"&VLOOKUP(G12,SK_Mapping,4,FALSE)","v":"UB RA Jubiläum"},{"$f":"B12","v":211110},null,{"$f":"IF(E12>0,VLOOKUP(G12,SK_Mapping,2,FALSE),VLOOKUP(G12,SK_Mapping,3,FALSE))","v":817500},null,{"$f":"IF(I12=\"Haben\",\"Soll\",\"Haben\")","v":"Haben"},{"$f":"J12*-1","v":-8959.19},null,{"$f":"L12","v":"UB RA Jubiläum"},{"$f":"M12","v":211110}]
[384000,211300,3299.78,null,3299.78,null,384000,null,"Haben",-3299.78,null,"UB RA Jubiläum",211300,null,592000,null,"Soll",3299.78,null,"UB RA Jubiläum",211300]
[384000,211310,-3299.78,null,-3299.78,null,384000,null,"Soll",3299.78,null,"UB RA Jubiläum",211310,null,817500,null,"Haben",-3299.78,null,"UB RA Jubiläum",211310]
[384000,211400,-12507.28,null,-12507.28,null,384000,null,"Soll",12507.28,null,"UB RA Jubiläum",211400,null,817500,null,"Haben",-12507.28,null,"UB RA Jubiläum",211400]
[384000,211410,-2092.7199999999998,null,-2092.7199999999998,null,384000,null,"Soll",2092.7199999999998,null,"UB RA Jubiläum",211410,null,817500,null,"Haben",-2092.7199999999998,null,"UB RA Jubiläum",211410]
[null,null,null,null,0,null,0,null,"Soll",0,null,{"$error":"#N/A"},0,null,{"$error":"#N/A"},null,"Haben",0,null,{"$error":"#N/A"},0]
[null,null,null,null,0,null,0,null,"Soll",0,null,{"$error":"#N/A"},0,null,{"$error":"#N/A"},null,"Haben",0,null,{"$error":"#N/A"},0]
[null,null,null,null,0,null,0,null,"Soll",0,null,{"$error":"#N/A"},0,null,{"$error":"#N/A"},null,"Haben",0,null,{"$error":"#N/A"},0]
[null,null,null,null,0,null,0,null,"Soll",0,null,{"$error":"#N/A"},0,null,{"$error":"#N/A"},null,"Haben",0,null,{"$error":"#N/A"},0]
[null,null,null,null,0,null,0,null,"Soll",0,null,{"$error":"#N/A"},0,null,{"$error":"#N/A"},null,"Haben",0,null,{"$error":"#N/A"},0]
[null,null,null,null,0,null,0,null,"Soll",0,null,{"$error":"#N/A"},0,null,{"$error":"#N/A"},null,"Haben",0,null,{"$error":"#N/A"},0]
[null,null,null,null,0,null,0,null,"Soll",0,null,{"$error":"#N/A"},0,null,{"$error":"#N/A"},null,"Haben",0,null,{"$error":"#N/A"},0]
[null,null,null,null,0,null,0,null,"Soll",0,null,{"$error":"#N/A"},0,null,{"$error":"#N/A"},null,"Haben",0,null,{"$error":"#N/A"},0]
[null,null,null,null,0,null,0,null,"Soll",0,null,{"$error":"#N/A"},0,null,{"$error":"#N/A"},null,"Haben",0,null,{"$error":"#N/A"},0]
[null,null,null,null,0,null,0,null,"Soll",0,null,{"$error":"#N/A"},0,null,{"$error":"#N/A"},null,"Haben",0,null,{"$error":"#N/A"},0]
[null,null,null,null,0,null,0,null,"Soll",0,null,{"$error":"#N/A"},0,null,{"$error":"#N/A"},null,"Haben",0,null,{"$error":"#N/A"},0]
[null,null,null,null,0,null,0,null,"Soll",0,null,{"$error":"#N/A"},0,null,{"$error":"#N/A"},null,"Haben",0,null,{"$error":"#N/A"},0]
[null,null,null,null,0,null,0,null,"Soll",0,null,{"$error":"#N/A"},0,null,{"$error":"#N/A"},null,"Haben",0,null,{"$error":"#N/A"},0]
[null,null,null,null,0,null,0,null,"Soll",0,null,{"$error":"#N/A"},0,null,{"$error":"#N/A"},null,"Haben",0,null,{"$error":"#N/A"},0]
[null,null,null,null,0,null,0,null,"Soll",0,null,{"$error":"#N/A"},0,null,{"$error":"#N/A"},null,"Haben",0,null,{"$error":"#N/A"},0]
[null,null,null,null,0,null,0,null,"Soll",0,null,{"$error":"#N/A"},0,null,{"$error":"#N/A"},null,"Haben",0,null,{"$error":"#N/A"},0]
[null,null,null,null,0,null,0,null,"Soll",0,null,{"$error":"#N/A"},0,null,{"$error":"#N/A"},null,"Haben",0,null,{"$error":"#N/A"},0]
[null,null,null,null,0,null,0,null,"Soll",0,null,{"$error":"#N/A"},0,null,{"$error":"#N/A"},null,"Haben",0,null,{"$error":"#N/A"},0]
[null,null,null,null,0,null,0,null,"Soll",0,null,{"$error":"#N/A"},0,null,{"$error":"#N/A"},null,"Haben",0,null,{"$error":"#N/A"},0]
[null,null,null,null,0,null,0,null,"Soll",0,null,{"$error":"#N/A"},0,null,{"$error":"#N/A"},null,"Haben",0,null,{"$error":"#N/A"},0]
[null,null,null,null,0,null,0,null,"Soll",0,null,{"$error":"#N/A"},0,null,{"$error":"#N/A"},null,"Haben",0,null,{"$error":"#N/A"},0]
[null,null,null,null,0,null,0,null,"Soll",0,null,{"$error":"#N/A"},0,null,{"$error":"#N/A"},null,"Haben",0,null,{"$error":"#N/A"},0]
[null,null,null,null,0,null,0,null,"Soll",0,null,{"$error":"#N/A"},0,null,{"$error":"#N/A"},null,"Haben",0,null,{"$error":"#N/A"},0]
[null,null,null,null,0,null,0,null,"Soll",0,null,{"$error":"#N/A"},0,null,{"$error":"#N/A"},null,"Haben",0,null,{"$error":"#N/A"},0]
[null,null,null,null,0,null,0,null,"Soll",0,null,{"$error":"#N/A"},0,null,{"$error":"#N/A"},null,"Haben",0,null,{"$error":"#N/A"},0]
[null,null,null,null,0,null,0,null,"Soll",0,null,{"$error":"#N/A"},0,null,{"$error":"#N/A"},null,"Haben",0,null,{"$error":"#N/A"},0]
[null,null,null,null,0,null,0,null,"Soll",0,null,{"$error":"#N/A"},0,null,{"$error":"#N/A"},null,"Haben",0,null,{"$error":"#N/A"},0]
[null,null,null,null,0,null,0,null,"Soll",0,null,{"$error":"#N/A"},0,null,{"$error":"#N/A"},null,"Haben",0,null,{"$error":"#N/A"},0]
[null,null,null,null,0,null,0,null,"Soll",0,null,{"$error":"#N/A"},0,null,{"$error":"#N/A"},null,"Haben",0,null,{"$error":"#N/A"},0]
[null,null,null,null,0,null,0,null,"Soll",0,null,{"$error":"#N/A"},0,null,{"$error":"#N/A"},null,"Haben",0,null,{"$error":"#N/A"},0]
[null,null,null,null,0,null,0,null,"Soll",0,null,{"$error":"#N/A"},0,null,{"$error":"#N/A"},null,"Haben",0,null,{"$error":"#N/A"},0]
[null,null,null,null,0,null,0,null,"Soll",0,null,{"$error":"#N/A"},0,null,{"$error":"#N/A"},null,"Haben",0,null,{"$error":"#N/A"},0]
[null,null,null,null,0,null,0,null,"Soll",0,null,{"$error":"#N/A"},0,null,{"$error":"#N/A"},null,"Haben",0,null,{"$error":"#N/A"},0]
[null,null,null,null,0,null,0,null,"Soll",0,null,{"$error":"#N/A"},0,null,{"$error":"#N/A"},null,"Haben",0,null,{"$error":"#N/A"},0]
[null,null,null,null,0,null,0,null,"Soll",0,null,{"$error":"#N/A"},0,null,{"$error":"#N/A"},null,"Haben",0,null,{"$error":"#N/A"},0]
[null,null,null,null,0,null,0,null,"Soll",0,null,{"$error":"#N/A"},0,null,{"$error":"#N/A"},null,"Haben",0,null,{"$error":"#N/A"},0]
[null,null,null,null,0,null,0,null,"Soll",0,null,{"$error":"#N/A"},0,null,{"$error":"#N/A"},null,"Haben",0,null,{"$error":"#N/A"},0]
[null,null,null,null,0,null,0,null,"Soll",0,null,{"$error":"#N/A"},0,null,{"$error":"#N/A"},null,"Haben",0,null,{"$error":"#N/A"},0]
[null,null,null,null,0,null,0,null,"Soll",0,null,{"$error":"#N/A"},0,null,{"$error":"#N/A"},null,"Haben",0,null,{"$error":"#N/A"},0]
[null,null,null,null,0,null,0,null,"Soll",0,null,{"$error":"#N/A"},0,null,{"$error":"#N/A"},null,"Haben",0,null,{"$error":"#N/A"},0]
[null,null,null,null,0,null,0,null,"Soll",0,null,{"$error":"#N/A"},0,null,{"$error":"#N/A"},null,"Haben",0,null,{"$error":"#N/A"},0]
[null,null,null,null,0,null,0,null,"Soll",0,null,{"$error":"#N/A"},0,null,{"$error":"#N/A"},null,"Haben",0,null,{"$error":"#N/A"},0]
[null,null,null,null,0,null,0,null,"Soll",0,null,{"$error":"#N/A"},0,null,{"$error":"#N/A"},null,"Haben",0,null,{"$error":"#N/A"},0]
[null,null,null,null,0,null,0,null,"Soll",0,null,{"$error":"#N/A"},0,null,{"$error":"#N/A"},null,"Haben",0,null,{"$error":"#N/A"},0]
[null,null,null,null,0,null,0,null,"Soll",0,null,{"$error":"#N/A"},0,null,{"$error":"#N/A"},null,"Haben",0,null,{"$error":"#N/A"},0]
[null,null,null,null,0,null,0,null,"Soll",0,null,{"$error":"#N/A"},0,null,{"$error":"#N/A"},null,"Haben",0,null,{"$error":"#N/A"},0]
[null,null,null,null,0,null,0,null,"Soll",0,null,{"$error":"#N/A"},0,null,{"$error":"#N/A"},null,"Haben",0,null,{"$error":"#N/A"},0]
[null,null,null,null,0,null,0,null,"Soll",0,null,{"$error":"#N/A"},0,null,{"$error":"#N/A"},null,"Haben",0,null,{"$error":"#N/A"},0]
[null,null,null,null,0,null,0,null,"Soll",0,null,{"$error":"#N/A"},0,null,{"$error":"#N/A"},null,"Haben",0,null,{"$error":"#N/A"},0]
[null,null,null,null,0,null,0,null,"Soll",0,null,{"$error":"#N/A"},0,null,{"$error":"#N/A"},null,"Haben",0,null,{"$error":"#N/A"},0]
[null,null,null,null,0,null,0,null,"Soll",0,null,{"$error":"#N/A"},0,null,{"$error":"#N/A"},null,"Haben",0,null,{"$error":"#N/A"},0]
[null,null,null,null,0,null,0,null,"Soll",0,null,{"$error":"#N/A"},0,null,{"$error":"#N/A"},null,"Haben",0,null,{"$error":"#N/A"},0]
[null,null,null,null,0,null,0,null,"Soll",0,null,{"$error":"#N/A"},0,null,{"$error":"#N/A"},null,"Haben",0,null,{"$error":"#N/A"},0]
[null,null,null,null,0,null,0,null,"Soll",0,null,{"$error":"#N/A"},0,null,{"$error":"#N/A"},null,"Haben",0,null,{"$error":"#N/A"},0]
[null,null,null,null,0,null,0,null,"Soll",0,null,{"$error":"#N/A"},0,null,{"$error":"#N/A"},null,"Haben",0,null,{"$error":"#N/A"},0]
[null,null,null,null,0,null,0,null,"Soll",0,null,{"$error":"#N/A"},0,null,{"$error":"#N/A"},null,"Haben",0,null,{"$error":"#N/A"},0]
[null,null,null,null,0,null,0,null,"Soll",0,null,{"$error":"#N/A"},0,null,{"$error":"#N/A"},null,"Haben",0,null,{"$error":"#N/A"},0]
[null,null,null,null,0,null,0,null,"Soll",0,null,{"$error":"#N/A"},0,null,{"$error":"#N/A"},null,"Haben",0,null,{"$error":"#N/A"},0]
[null,null,null,null,0,null,0,null,"Soll",0,null,{"$error":"#N/A"},0,null,{"$error":"#N/A"},null,"Haben",0,null,{"$error":"#N/A"},0]
[null,null,null,null,{"$f":"C76+D76","v":0},null,{"$f":"A76","v":0},null,{"$f":"IF(E76>0,\"Haben\",\"Soll\")","v":"Soll"},{"$f":"IF(I76=\"Haben\",IF(E76>0,E76,E76*-1)*-1,IF(E76>0,E76,E76*-1))","v":0},null,{"$f":"\"UB RA \"&VLOOKUP(G76,SK_Mapping,4,FALSE)","v":{"$error":"#N/A"}},{"$f":"B76","v":0},null,{"$f":"IF(E76>0,VLOOKUP(G76,SK_Mapping,2,FALSE),VLOOKUP(G76,SK_Mapping,3,FALSE))","v":{"$error":"#N/A"}},null,{"$f":"IF(I76=\"Haben\",\"Soll\",\"Haben\")","v":"Haben"},{"$f":"J76*-1","v":0},null,{"$f":"L76","v":{"$error":"#N/A"}},{"$f":"M76","v":0}]
[null,null,null,null,0,null,0,null,"Soll",0,null,{"$error":"#N/A"},0,null,{"$error":"#N/A"},null,"Haben",0,null,{"$error":"#N/A"},0]
[null,null,null,null,0,null,0,null,"Soll",0,null,{"$error":"#N/A"},0,null,{"$error":"#N/A"},null,"Haben",0,null,{"$error":"#N/A"},0]
[null,null,null,null,0,null,0,null,"Soll",0,null,{"$error":"#N/A"},0,null,{"$error":"#N/A"},null,"Haben",0,null,{"$error":"#N/A"},0]
[null,null,null,null,0,null,0,null,"Soll",0,null,{"$error":"#N/A"},0,null,{"$error":"#N/A"},null,"Haben",0,null,{"$error":"#N/A"},0]
[null,null,null,null,0,null,0,null,"Soll",0,null,{"$error":"#N/A"},0,null,{"$error":"#N/A"},null,"Haben",0,null,{"$error":"#N/A"},0]
[null,null,null,null,0,null,0,null,"Soll",0,null,{"$error":"#N/A"},0,null,{"$error":"#N/A"},null,"Haben",0,null,{"$error":"#N/A"},0]
[null,null,null,null,0,null,0,null,"Soll",0,null,{"$error":"#N/A"},0,null,{"$error":"#N/A"},null,"Haben",0,null,{"$error":"#N/A"},0]
[null,null,null,null,0,null,0,null,"Soll",0,null,{"$error":"#N/A"},0,null,{"$error":"#N/A"},null,"Haben",0,null,{"$error":"#N/A"},0]
[null,null,null,null,0,null,0,null,"Soll",0,null,{"$error":"#N/A"},0,null,{"$error":"#N/A"},null,"Haben",0,null,{"$error":"#N/A"},0]
[null,null,null,null,0,null,0,null,"Soll",0,null,{"$error":"#N/A"},0,null,{"$error":"#N/A"},null,"Haben",0,null,{"$error":"#N/A"},0]
[null,null,null,null,0,null,0,null,"Soll",0,null,{"$error":"#N/A"},0,null,{"$error":"#N/A"},null,"Haben",0,null,{"$error":"#N/A"},0]
[null,null,null,null,0,null,0,null,"Soll",0,null,{"$error":"#N/A"},0,null,{"$error":"#N/A"},null,"Haben",0,null,{"$error":"#N/A"},0]
[null,null,null,null,0,null,0,null,"Soll",0,null,{"$error":"#N/A"},0,null,{"$error":"#N/A"},null,"Haben",0,null,{"$error":"#N/A"},0]
[null,null,null,null,0,null,0,null,"Soll",0,null,{"$error":"#N/A"},0,null,{"$error":"#N/A"},null,"Haben",0,null,{"$error":"#N/A"},0]
[null,null,null,null,0,null,0,null,"Soll",0,null,{"$error":"#N/A"},0,null,{"$error":"#N/A"},null,"Haben",0,null,{"$error":"#N/A"},0]
[null,null,null,null,0,null,0,null,"Soll",0,null,{"$error":"#N/A"},0,null,{"$error":"#N/A"},null,"Haben",0,null,{"$error":"#N/A"},0]
[null,null,null,null,0,null,0,null,"Soll",0,null,{"$error":"#N/A"},0,null,{"$error":"#N/A"},null,"Haben",0,null,{"$error":"#N/A"},0]
[null,null,null,null,0,null,0,null,"Soll",0,null,{"$error":"#N/A"},0,null,{"$error":"#N/A"},null,"Haben",0,null,{"$error":"#N/A"},0]
[null,null,null,null,0,null,0,null,"Soll",0,null,{"$error":"#N/A"},0,null,{"$error":"#N/A"},null,"Haben",0,null,{"$error":"#N/A"},0]
[null,null,null,null,0,null,0,null,"Soll",0,null,{"$error":"#N/A"},0,null,{"$error":"#N/A"},null,"Haben",0,null,{"$error":"#N/A"},0]
[null,null,null,null,0,null,0,null,"Soll",0,null,{"$error":"#N/A"},0,null,{"$error":"#N/A"},null,"Haben",0,null,{"$error":"#N/A"},0]
[null,null,null,null,0,null,0,null,"Soll",0,null,{"$error":"#N/A"},0,null,{"$error":"#N/A"},null,"Haben",0,null,{"$error":"#N/A"},0]
[null,null,null,null,0,null,0,null,"Soll",0,null,{"$error":"#N/A"},0,null,{"$error":"#N/A"},null,"Haben",0,null,{"$error":"#N/A"},0]
[null,null,null,null,0,null,0,null,"Soll",0,null,{"$error":"#N/A"},0,null,{"$error":"#N/A"},null,"Haben",0,null,{"$error":"#N/A"},0]
[null,null,null,null,0,null,0,null,"Soll",0,null,{"$error":"#N/A"},0,null,{"$error":"#N/A"},null,"Haben",0,null,{"$error":"#N/A"},0]
[null,null,null,null,0,null,0,null,"Soll",0,null,{"$error":"#N/A"},0,null,{"$error":"#N/A"},null,"Haben",0,null,{"$error":"#N/A"},0]
[null,null,null,null,0,null,0,null,"Soll",0,null,{"$error":"#N/A"},0,null,{"$error":"#N/A"},null,"Haben",0,null,{"$error":"#N/A"},0]
[null,null,null,null,0,null,0,null,"Soll",0,null,{"$error":"#N/A"},0,null,{"$error":"#N/A"},null,"Haben",0,null,{"$error":"#N/A"},0]
[null,null,null,null,0,null,0,null,"Soll",0,null,{"$error":"#N/A"},0,null,{"$error":"#N/A"},null,"Haben",0,null,{"$error":"#N/A"},0]
[null,null,null,null,0,null,0,null,"Soll",0,null,{"$error":"#N/A"},0,null,{"$error":"#N/A"},null,"Haben",0,null,{"$error":"#N/A"},0]
[null,null,null,null,0,null,0,null,"Soll",0,null,{"$error":"#N/A"},0,null,{"$error":"#N/A"},null,"Haben",0,null,{"$error":"#N/A"},0]

{"sheet":"Mapping","index":1,"n_rows":3,"n_cols":6,"rows_kept":3,"cut":false,"hidden":false,"merged":[]}
[381000,593000,817200,"Urlaub"]
[383000,591000,817400,"Abfertigung"]
[384000,592000,817500,"Jubiläum",null,"Für Budget kommen die Werte aus dem PWHR (1.592000 /2.817500)"]

{"sheet":"SAKO_ALG","index":2,"n_rows":203,"n_cols":16,"rows_kept":203,"cut":false,"hidden":false,"merged":[]}
["Buchungskreis/BUKRS",null,"Belegart/BLART","Steuer rechnen/XMWST",null,"Datum/BUDAT",null,null,"Belegkopftext/BKTXT","Konto/NEWKO","BS","Betrag/WRBTR","Text/SGTXT","Steuerkennzeichen/MWSKZ","Kostenstelle/KOSTL","Auftrag/AUFNR"]
[{"$f":"Rückstellungen!$B$3","v":"XXXX"},null,{"$f":"Rückstellungen!$J$5","v":"LG"},null,null,{"$f":"Rückstellungen!$M$4","v":"2024-12-31"},null,null,{"$f":"Rückstellungen!$I$4","v":"UB RA Rückstellungen"},{"$f":"Rückstellungen!G7","v":384000},{"$f":"IF(Rückstellungen!I7=\"Haben\",50,40)","v":40},{"$f":"IF(Rückstellungen!I7=\"Haben\",Rückstellungen!J7*-1,Rückstellungen!J7)","v":181200},{"$f":"Rückstellungen!L7","v":"UB RA Jubiläum"},null,{"$f":"Rückstellungen!M7","v":10000}]
[{"$f":"Rückstellungen!$B$3","v":"XXXX"},null,{"$f":"Rückstellungen!$J$5","v":"LG"},null,null,{"$f":"Rückstellungen!$M$4","v":"2024-12-31"},null,null,{"$f":"Rückstellungen!$I$4","v":"UB RA Rückstellungen"},{"$f":"Rückstellungen!G8","v":384000},{"$f":"IF(Rückstellungen!I8=\"Haben\",50,40)","v":40},{"$f":"IF(Rückstellungen!I8=\"Haben\",Rückstellungen!J8*-1,Rückstellungen!J8)","v":20700},{"$f":"Rückstellungen!L8","v":"UB RA Jubiläum"},null,{"$f":"Rückstellungen!M8","v":22000}]
[{"$f":"Rückstellungen!$B$3","v":"XXXX"},null,{"$f":"Rückstellungen!$J$5","v":"LG"},null,null,{"$f":"Rückstellungen!$M$4","v":"2024-12-31"},null,null,{"$f":"Rückstellungen!$I$4","v":"UB RA Rückstellungen"},{"$f":"Rückstellungen!G9","v":384000},{"$f":"IF(Rückstellungen!I9=\"Haben\",50,40)","v":40},{"$f":"IF(Rückstellungen!I9=\"Haben\",Rückstellungen!J9*-1,Rückstellungen!J9)","v":132100},{"$f":"Rückstellungen!L9","v":"UB RA Jubiläum"},null,{"$f":"Rückstellungen!M9","v":30000}]
[{"$f":"Rückstellungen!$B$3","v":"XXXX"},null,{"$f":"Rückstellungen!$J$5","v":"LG"},null,null,{"$f":"Rückstellungen!$M$4","v":"2024-12-31"},null,null,{"$f":"Rückstellungen!$I$4","v":"UB RA Rückstellungen"},{"$f":"Rückstellungen!G10","v":384000},{"$f":"IF(Rückstellungen!I10=\"Haben\",50,40)","v":40},{"$f":"IF(Rückstellungen!I10=\"Haben\",Rückstellungen!J10*-1,Rückstellungen!J10)","v":20100},{"$f":"Rückstellungen!L10","v":"UB RA Jubiläum"},null,{"$f":"Rückstellungen!M10","v":163100}]
[{"$f":"Rückstellungen!$B$3","v":"XXXX"},null,{"$f":"Rückstellungen!$J$5","v":"LG"},null,null,{"$f":"Rückstellungen!$M$4","v":"2024-12-31"},null,null,{"$f":"Rückstellungen!$I$4","v":"UB RA Rückstellungen"},{"$f":"Rückstellungen!G11","v":384000},{"$f":"IF(Rückstellungen!I11=\"Haben\",50,40)","v":40},{"$f":"IF(Rückstellungen!I11=\"Haben\",Rückstellungen!J11*-1,Rückstellungen!J11)","v":10440.81},{"$f":"Rückstellungen!L11","v":"UB RA Jubiläum"},null,{"$f":"Rückstellungen!M11","v":211100}]
[{"$f":"Rückstellungen!$B$3","v":"XXXX"},null,{"$f":"Rückstellungen!$J$5","v":"LG"},null,null,{"$f":"Rückstellungen!$M$4","v":"2024-12-31"},null,null,{"$f":"Rückstellungen!$I$4","v":"UB RA Rückstellungen"},{"$f":"Rückstellungen!G12","v":384000},{"$f":"IF(Rückstellungen!I12=\"Haben\",50,40)","v":40},{"$f":"IF(Rückstellungen!I12=\"Haben\",Rückstellungen!J12*-1,Rückstellungen!J12)","v":8959.19},{"$f":"Rückstellungen!L12","v":"UB RA Jubiläum"},null,{"$f":"Rückstellungen!M12","v":211110}]
[{"$f":"Rückstellungen!$B$3","v":"XXXX"},null,{"$f":"Rückstellungen!$J$5","v":"LG"},null,null,{"$f":"Rückstellungen!$M$4","v":"2024-12-31"},null,null,{"$f":"Rückstellungen!$I$4","v":"UB RA Rückstellungen"},{"$f":"Rückstellungen!G13","v":384000},{"$f":"IF(Rückstellungen!I13=\"Haben\",50,40)","v":50},{"$f":"IF(Rückstellungen!I13=\"Haben\",Rückstellungen!J13*-1,Rückstellungen!J13)","v":3299.78},{"$f":"Rückstellungen!L13","v":"UB RA Jubiläum"},null,{"$f":"Rückstellungen!M13","v":211300}]
[{"$f":"Rückstellungen!$B$3","v":"XXXX"},null,{"$f":"Rückstellungen!$J$5","v":"LG"},null,null,{"$f":"Rückstellungen!$M$4","v":"2024-12-31"},null,null,{"$f":"Rückstellungen!$I$4","v":"UB RA Rückstellungen"},{"$f":"Rückstellungen!G14","v":384000},{"$f":"IF(Rückstellungen!I14=\"Haben\",50,40)","v":40},{"$f":"IF(Rückstellungen!I14=\"Haben\",Rückstellungen!J14*-1,Rückstellungen!J14)","v":3299.78},{"$f":"Rückstellungen!L14","v":"UB RA Jubiläum"},null,{"$f":"Rückstellungen!M14","v":211310}]
[{"$f":"Rückstellungen!$B$3","v":"XXXX"},null,{"$f":"Rückstellungen!$J$5","v":"LG"},null,null,{"$f":"Rückstellungen!$M$4","v":"2024-12-31"},null,null,{"$f":"Rückstellungen!$I$4","v":"UB RA Rückstellungen"},{"$f":"Rückstellungen!G15","v":384000},{"$f":"IF(Rückstellungen!I15=\"Haben\",50,40)","v":40},{"$f":"IF(Rückstellungen!I15=\"Haben\",Rückstellungen!J15*-1,Rückstellungen!J15)","v":12507.28},{"$f":"Rückstellungen!L15","v":"UB RA Jubiläum"},null,{"$f":"Rückstellungen!M15","v":211400}]
[{"$f":"Rückstellungen!$B$3","v":"XXXX"},null,{"$f":"Rückstellungen!$J$5","v":"LG"},null,null,{"$f":"Rückstellungen!$M$4","v":"2024-12-31"},null,null,{"$f":"Rückstellungen!$I$4","v":"UB RA Rückstellungen"},{"$f":"Rückstellungen!G16","v":384000},{"$f":"IF(Rückstellungen!I16=\"Haben\",50,40)","v":40},{"$f":"IF(Rückstellungen!I16=\"Haben\",Rückstellungen!J16*-1,Rückstellungen!J16)","v":2092.7199999999998},{"$f":"Rückstellungen!L16","v":"UB RA Jubiläum"},null,{"$f":"Rückstellungen!M16","v":211410}]
[{"$f":"Rückstellungen!$B$3","v":"XXXX"},null,{"$f":"Rückstellungen!$J$5","v":"LG"},null,null,{"$f":"Rückstellungen!$M$4","v":"2024-12-31"},null,null,{"$f":"Rückstellungen!$I$4","v":"UB RA Rückstellungen"},{"$f":"Rückstellungen!G17","v":0},{"$f":"IF(Rückstellungen!I17=\"Haben\",50,40)","v":40},{"$f":"IF(Rückstellungen!I17=\"Haben\",Rückstellungen!J17*-1,Rückstellungen!J17)","v":0},{"$f":"Rückstellungen!L17","v":{"$error":"#N/A"}},null,{"$f":"Rückstellungen!M17","v":0}]
[{"$f":"Rückstellungen!$B$3","v":"XXXX"},null,{"$f":"Rückstellungen!$J$5","v":"LG"},null,null,{"$f":"Rückstellungen!$M$4","v":"2024-12-31"},null,null,{"$f":"Rückstellungen!$I$4","v":"UB RA Rückstellungen"},{"$f":"Rückstellungen!G18","v":0},{"$f":"IF(Rückstellungen!I18=\"Haben\",50,40)","v":40},{"$f":"IF(Rückstellungen!I18=\"Haben\",Rückstellungen!J18*-1,Rückstellungen!J18)","v":0},{"$f":"Rückstellungen!L18","v":{"$error":"#N/A"}},null,{"$f":"Rückstellungen!M18","v":0}]
[{"$f":"Rückstellungen!$B$3","v":"XXXX"},null,{"$f":"Rückstellungen!$J$5","v":"LG"},null,null,{"$f":"Rückstellungen!$M$4","v":"2024-12-31"},null,null,{"$f":"Rückstellungen!$I$4","v":"UB RA Rückstellungen"},{"$f":"Rückstellungen!G19","v":0},{"$f":"IF(Rückstellungen!I19=\"Haben\",50,40)","v":40},{"$f":"IF(Rückstellungen!I19=\"Haben\",Rückstellungen!J19*-1,Rückstellungen!J19)","v":0},{"$f":"Rückstellungen!L19","v":{"$error":"#N/A"}},null,{"$f":"Rückstellungen!M19","v":0}]
[{"$f":"Rückstellungen!$B$3","v":"XXXX"},null,{"$f":"Rückstellungen!$J$5","v":"LG"},null,null,{"$f":"Rückstellungen!$M$4","v":"2024-12-31"},null,null,{"$f":"Rückstellungen!$I$4","v":"UB RA Rückstellungen"},{"$f":"Rückstellungen!G20","v":0},{"$f":"IF(Rückstellungen!I20=\"Haben\",50,40)","v":40},{"$f":"IF(Rückstellungen!I20=\"Haben\",Rückstellungen!J20*-1,Rückstellungen!J20)","v":0},{"$f":"Rückstellungen!L20","v":{"$error":"#N/A"}},null,{"$f":"Rückstellungen!M20","v":0}]
[{"$f":"Rückstellungen!$B$3","v":"XXXX"},null,{"$f":"Rückstellungen!$J$5","v":"LG"},null,null,{"$f":"Rückstellungen!$M$4","v":"2024-12-31"},null,null,{"$f":"Rückstellungen!$I$4","v":"UB RA Rückstellungen"},{"$f":"Rückstellungen!G21","v":0},{"$f":"IF(Rückstellungen!I21=\"Haben\",50,40)","v":40},{"$f":"IF(Rückstellungen!I21=\"Haben\",Rückstellungen!J21*-1,Rückstellungen!J21)","v":0},{"$f":"Rückstellungen!L21","v":{"$error":"#N/A"}},null,{"$f":"Rückstellungen!M21","v":0}]
[{"$f":"Rückstellungen!$B$3","v":"XXXX"},null,{"$f":"Rückstellungen!$J$5","v":"LG"},null,null,{"$f":"Rückstellungen!$M$4","v":"2024-12-31"},null,null,{"$f":"Rückstellungen!$I$4","v":"UB RA Rückstellungen"},{"$f":"Rückstellungen!G22","v":0},{"$f":"IF(Rückstellungen!I22=\"Haben\",50,40)","v":40},{"$f":"IF(Rückstellungen!I22=\"Haben\",Rückstellungen!J22*-1,Rückstellungen!J22)","v":0},{"$f":"Rückstellungen!L22","v":{"$error":"#N/A"}},null,{"$f":"Rückstellungen!M22","v":0}]
[{"$f":"Rückstellungen!$B$3","v":"XXXX"},null,{"$f":"Rückstellungen!$J$5","v":"LG"},null,null,{"$f":"Rückstellungen!$M$4","v":"2024-12-31"},null,null,{"$f":"Rückstellungen!$I$4","v":"UB RA Rückstellungen"},{"$f":"Rückstellungen!G23","v":0},{"$f":"IF(Rückstellungen!I23=\"Haben\",50,40)","v":40},{"$f":"IF(Rückstellungen!I23=\"Haben\",Rückstellungen!J23*-1,Rückstellungen!J23)","v":0},{"$f":"Rückstellungen!L23","v":{"$error":"#N/A"}},null,{"$f":"Rückstellungen!M23","v":0}]
[{"$f":"Rückstellungen!$B$3","v":"XXXX"},null,{"$f":"Rückstellungen!$J$5","v":"LG"},null,null,{"$f":"Rückstellungen!$M$4","v":"2024-12-31"},null,null,{"$f":"Rückstellungen!$I$4","v":"UB RA Rückstellungen"},{"$f":"Rückstellungen!G24","v":0},{"$f":"IF(Rückstellungen!I24=\"Haben\",50,40)","v":40},{"$f":"IF(Rückstellungen!I24=\"Haben\",Rückstellungen!J24*-1,Rückstellungen!J24)","v":0},{"$f":"Rückstellungen!L24","v":{"$error":"#N/A"}},null,{"$f":"Rückstellungen!M24","v":0}]
[{"$f":"Rückstellungen!$B$3","v":"XXXX"},null,{"$f":"Rückstellungen!$J$5","v":"LG"},null,null,{"$f":"Rückstellungen!$M$4","v":"2024-12-31"},null,null,{"$f":"Rückstellungen!$I$4","v":"UB RA Rückstellungen"},{"$f":"Rückstellungen!G25","v":0},{"$f":"IF(Rückstellungen!I25=\"Haben\",50,40)","v":40},{"$f":"IF(Rückstellungen!I25=\"Haben\",Rückstellungen!J25*-1,Rückstellungen!J25)","v":0},{"$f":"Rückstellungen!L25","v":{"$error":"#N/A"}},null,{"$f":"Rückstellungen!M25","v":0}]
[{"$f":"Rückstellungen!$B$3","v":"XXXX"},null,{"$f":"Rückstellungen!$J$5","v":"LG"},null,null,{"$f":"Rückstellungen!$M$4","v":"2024-12-31"},null,null,{"$f":"Rückstellungen!$I$4","v":"UB RA Rückstellungen"},{"$f":"Rückstellungen!G26","v":0},{"$f":"IF(Rückstellungen!I26=\"Haben\",50,40)","v":40},{"$f":"IF(Rückstellungen!I26=\"Haben\",Rückstellungen!J26*-1,Rückstellungen!J26)","v":0},{"$f":"Rückstellungen!L26","v":{"$error":"#N/A"}},null,{"$f":"Rückstellungen!M26","v":0}]
[{"$f":"Rückstellungen!$B$3","v":"XXXX"},null,{"$f":"Rückstellungen!$J$5","v":"LG"},null,null,{"$f":"Rückstellungen!$M$4","v":"2024-12-31"},null,null,{"$f":"Rückstellungen!$I$4","v":"UB RA Rückstellungen"},{"$f":"Rückstellungen!G27","v":0},{"$f":"IF(Rückstellungen!I27=\"Haben\",50,40)","v":40},{"$f":"IF(Rückstellungen!I27=\"Haben\",Rückstellungen!J27*-1,Rückstellungen!J27)","v":0},{"$f":"Rückstellungen!L27","v":{"$error":"#N/A"}},null,{"$f":"Rückstellungen!M27","v":0}]
[{"$f":"Rückstellungen!$B$3","v":"XXXX"},null,{"$f":"Rückstellungen!$J$5","v":"LG"},null,null,{"$f":"Rückstellungen!$M$4","v":"2024-12-31"},null,null,{"$f":"Rückstellungen!$I$4","v":"UB RA Rückstellungen"},{"$f":"Rückstellungen!G28","v":0},{"$f":"IF(Rückstellungen!I28=\"Haben\",50,40)","v":40},{"$f":"IF(Rückstellungen!I28=\"Haben\",Rückstellungen!J28*-1,Rückstellungen!J28)","v":0},{"$f":"Rückstellungen!L28","v":{"$error":"#N/A"}},null,{"$f":"Rückstellungen!M28","v":0}]
[{"$f":"Rückstellungen!$B$3","v":"XXXX"},null,{"$f":"Rückstellungen!$J$5","v":"LG"},null,null,{"$f":"Rückstellungen!$M$4","v":"2024-12-31"},null,null,{"$f":"Rückstellungen!$I$4","v":"UB RA Rückstellungen"},{"$f":"Rückstellungen!G29","v":0},{"$f":"IF(Rückstellungen!I29=\"Haben\",50,40)","v":40},{"$f":"IF(Rückstellungen!I29=\"Haben\",Rückstellungen!J29*-1,Rückstellungen!J29)","v":0},{"$f":"Rückstellungen!L29","v":{"$error":"#N/A"}},null,{"$f":"Rückstellungen!M29","v":0}]
[{"$f":"Rückstellungen!$B$3","v":"XXXX"},null,{"$f":"Rückstellungen!$J$5","v":"LG"},null,null,{"$f":"Rückstellungen!$M$4","v":"2024-12-31"},null,null,{"$f":"Rückstellungen!$I$4","v":"UB RA Rückstellungen"},{"$f":"Rückstellungen!G30","v":0},{"$f":"IF(Rückstellungen!I30=\"Haben\",50,40)","v":40},{"$f":"IF(Rückstellungen!I30=\"Haben\",Rückstellungen!J30*-1,Rückstellungen!J30)","v":0},{"$f":"Rückstellungen!L30","v":{"$error":"#N/A"}},null,{"$f":"Rückstellungen!M30","v":0}]
[{"$f":"Rückstellungen!$B$3","v":"XXXX"},null,{"$f":"Rückstellungen!$J$5","v":"LG"},null,null,{"$f":"Rückstellungen!$M$4","v":"2024-12-31"},null,null,{"$f":"Rückstellungen!$I$4","v":"UB RA Rückstellungen"},{"$f":"Rückstellungen!G31","v":0},{"$f":"IF(Rückstellungen!I31=\"Haben\",50,40)","v":40},{"$f":"IF(Rückstellungen!I31=\"Haben\",Rückstellungen!J31*-1,Rückstellungen!J31)","v":0},{"$f":"Rückstellungen!L31","v":{"$error":"#N/A"}},null,{"$f":"Rückstellungen!M31","v":0}]
[{"$f":"Rückstellungen!$B$3","v":"XXXX"},null,{"$f":"Rückstellungen!$J$5","v":"LG"},null,null,{"$f":"Rückstellungen!$M$4","v":"2024-12-31"},null,null,{"$f":"Rückstellungen!$I$4","v":"UB RA Rückstellungen"},{"$f":"Rückstellungen!G32","v":0},{"$f":"IF(Rückstellungen!I32=\"Haben\",50,40)","v":40},{"$f":"IF(Rückstellungen!I32=\"Haben\",Rückstellungen!J32*-1,Rückstellungen!J32)","v":0},{"$f":"Rückstellungen!L32","v":{"$error":"#N/A"}},null,{"$f":"Rückstellungen!M32","v":0}]
[{"$f":"Rückstellungen!$B$3","v":"XXXX"},null,{"$f":"Rückstellungen!$J$5","v":"LG"},null,null,{"$f":"Rückstellungen!$M$4","v":"2024-12-31"},null,null,{"$f":"Rückstellungen!$I$4","v":"UB RA Rückstellungen"},{"$f":"Rückstellungen!G33","v":0},{"$f":"IF(Rückstellungen!I33=\"Haben\",50,40)","v":40},{"$f":"IF(Rückstellungen!I33=\"Haben\",Rückstellungen!J33*-1,Rückstellungen!J33)","v":0},{"$f":"Rückstellungen!L33","v":{"$error":"#N/A"}},null,{"$f":"Rückstellungen!M33","v":0}]
[{"$f":"Rückstellungen!$B$3","v":"XXXX"},null,{"$f":"Rückstellungen!$J$5","v":"LG"},null,null,{"$f":"Rückstellungen!$M$4","v":"2024-12-31"},null,null,{"$f":"Rückstellungen!$I$4","v":"UB RA Rückstellungen"},{"$f":"Rückstellungen!G34","v":0},{"$f":"IF(Rückstellungen!I34=\"Haben\",50,40)","v":40},{"$f":"IF(Rückstellungen!I34=\"Haben\",Rückstellungen!J34*-1,Rückstellungen!J34)","v":0},{"$f":"Rückstellungen!L34","v":{"$error":"#N/A"}},null,{"$f":"Rückstellungen!M34","v":0}]
[{"$f":"Rückstellungen!$B$3","v":"XXXX"},null,{"$f":"Rückstellungen!$J$5","v":"LG"},null,null,{"$f":"Rückstellungen!$M$4","v":"2024-12-31"},null,null,{"$f":"Rückstellungen!$I$4","v":"UB RA Rückstellungen"},{"$f":"Rückstellungen!G35","v":0},{"$f":"IF(Rückstellungen!I35=\"Haben\",50,40)","v":40},{"$f":"IF(Rückstellungen!I35=\"Haben\",Rückstellungen!J35*-1,Rückstellungen!J35)","v":0},{"$f":"Rückstellungen!L35","v":{"$error":"#N/A"}},null,{"$f":"Rückstellungen!M35","v":0}]
[{"$f":"Rückstellungen!$B$3","v":"XXXX"},null,{"$f":"Rückstellungen!$J$5","v":"LG"},null,null,{"$f":"Rückstellungen!$M$4","v":"2024-12-31"},null,null,{"$f":"Rückstellungen!$I$4","v":"UB RA Rückstellungen"},{"$f":"Rückstellungen!G36","v":0},{"$f":"IF(Rückstellungen!I36=\"Haben\",50,40)","v":40},{"$f":"IF(Rückstellungen!I36=\"Haben\",Rückstellungen!J36*-1,Rückstellungen!J36)","v":0},{"$f":"Rückstellungen!L36","v":{"$error":"#N/A"}},null,{"$f":"Rückstellungen!M36","v":0}]
[{"$f":"Rückstellungen!$B$3","v":"XXXX"},null,{"$f":"Rückstellungen!$J$5","v":"LG"},null,null,{"$f":"Rückstellungen!$M$4","v":"2024-12-31"},null,null,{"$f":"Rückstellungen!$I$4","v":"UB RA Rückstellungen"},{"$f":"Rückstellungen!G37","v":0},{"$f":"IF(Rückstellungen!I37=\"Haben\",50,40)","v":40},{"$f":"IF(Rückstellungen!I37=\"Haben\",Rückstellungen!J37*-1,Rückstellungen!J37)","v":0},{"$f":"Rückstellungen!L37","v":{"$error":"#N/A"}},null,{"$f":"Rückstellungen!M37","v":0}]
[{"$f":"Rückstellungen!$B$3","v":"XXXX"},null,{"$f":"Rückstellungen!$J$5","v":"LG"},null,null,{"$f":"Rückstellungen!$M$4","v":"2024-12-31"},null,null,{"$f":"Rückstellungen!$I$4","v":"UB RA Rückstellungen"},{"$f":"Rückstellungen!G38","v":0},{"$f":"IF(Rückstellungen!I38=\"Haben\",50,40)","v":40},{"$f":"IF(Rückstellungen!I38=\"Haben\",Rückstellungen!J38*-1,Rückstellungen!J38)","v":0},{"$f":"Rückstellungen!L38","v":{"$error":"#N/A"}},null,{"$f":"Rückstellungen!M38","v":0}]
[{"$f":"Rückstellungen!$B$3","v":"XXXX"},null,{"$f":"Rückstellungen!$J$5","v":"LG"},null,null,{"$f":"Rückstellungen!$M$4","v":"2024-12-31"},null,null,{"$f":"Rückstellungen!$I$4","v":"UB RA Rückstellungen"},{"$f":"Rückstellungen!G39","v":0},{"$f":"IF(Rückstellungen!I39=\"Haben\",50,40)","v":40},{"$f":"IF(Rückstellungen!I39=\"Haben\",Rückstellungen!J39*-1,Rückstellungen!J39)","v":0},{"$f":"Rückstellungen!L39","v":{"$error":"#N/A"}},null,{"$f":"Rückstellungen!M39","v":0}]
[{"$f":"Rückstellungen!$B$3","v":"XXXX"},null,{"$f":"Rückstellungen!$J$5","v":"LG"},null,null,{"$f":"Rückstellungen!$M$4","v":"2024-12-31"},null,null,{"$f":"Rückstellungen!$I$4","v":"UB RA Rückstellungen"},{"$f":"Rückstellungen!G40","v":0},{"$f":"IF(Rückstellungen!I40=\"Haben\",50,40)","v":40},{"$f":"IF(Rückstellungen!I40=\"Haben\",Rückstellungen!J40*-1,Rückstellungen!J40)","v":0},{"$f":"Rückstellungen!L40","v":{"$error":"#N/A"}},null,{"$f":"Rückstellungen!M40","v":0}]
[{"$f":"Rückstellungen!$B$3","v":"XXXX"},null,{"$f":"Rückstellungen!$J$5","v":"LG"},null,null,{"$f":"Rückstellungen!$M$4","v":"2024-12-31"},null,null,{"$f":"Rückstellungen!$I$4","v":"UB RA Rückstellungen"},{"$f":"Rückstellungen!G41","v":0},{"$f":"IF(Rückstellungen!I41=\"Haben\",50,40)","v":40},{"$f":"IF(Rückstellungen!I41=\"Haben\",Rückstellungen!J41*-1,Rückstellungen!J41)","v":0},{"$f":"Rückstellungen!L41","v":{"$error":"#N/A"}},null,{"$f":"Rückstellungen!M41","v":0}]
[{"$f":"Rückstellungen!$B$3","v":"XXXX"},null,{"$f":"Rückstellungen!$J$5","v":"LG"},null,null,{"$f":"Rückstellungen!$M$4","v":"2024-12-31"},null,null,{"$f":"Rückstellungen!$I$4","v":"UB RA Rückstellungen"},{"$f":"Rückstellungen!G42","v":0},{"$f":"IF(Rückstellungen!I42=\"Haben\",50,40)","v":40},{"$f":"IF(Rückstellungen!I42=\"Haben\",Rückstellungen!J42*-1,Rückstellungen!J42)","v":0},{"$f":"Rückstellungen!L42","v":{"$error":"#N/A"}},null,{"$f":"Rückstellungen!M42","v":0}]
[{"$f":"Rückstellungen!$B$3","v":"XXXX"},null,{"$f":"Rückstellungen!$J$5","v":"LG"},null,null,{"$f":"Rückstellungen!$M$4","v":"2024-12-31"},null,null,{"$f":"Rückstellungen!$I$4","v":"UB RA Rückstellungen"},{"$f":"Rückstellungen!G43","v":0},{"$f":"IF(Rückstellungen!I43=\"Haben\",50,40)","v":40},{"$f":"IF(Rückstellungen!I43=\"Haben\",Rückstellungen!J43*-1,Rückstellungen!J43)","v":0},{"$f":"Rückstellungen!L43","v":{"$error":"#N/A"}},null,{"$f":"Rückstellungen!M43","v":0}]
[{"$f":"Rückstellungen!$B$3","v":"XXXX"},null,{"$f":"Rückstellungen!$J$5","v":"LG"},null,null,{"$f":"Rückstellungen!$M$4","v":"2024-12-31"},null,null,{"$f":"Rückstellungen!$I$4","v":"UB RA Rückstellungen"},{"$f":"Rückstellungen!G44","v":0},{"$f":"IF(Rückstellungen!I44=\"Haben\",50,40)","v":40},{"$f":"IF(Rückstellungen!I44=\"Haben\",Rückstellungen!J44*-1,Rückstellungen!J44)","v":0},{"$f":"Rückstellungen!L44","v":{"$error":"#N/A"}},null,{"$f":"Rückstellungen!M44","v":0}]
[{"$f":"Rückstellungen!$B$3","v":"XXXX"},null,{"$f":"Rückstellungen!$J$5","v":"LG"},null,null,{"$f":"Rückstellungen!$M$4","v":"2024-12-31"},null,null,{"$f":"Rückstellungen!$I$4","v":"UB RA Rückstellungen"},{"$f":"Rückstellungen!G45","v":0},{"$f":"IF(Rückstellungen!I45=\"Haben\",50,40)","v":40},{"$f":"IF(Rückstellungen!I45=\"Haben\",Rückstellungen!J45*-1,Rückstellungen!J45)","v":0},{"$f":"Rückstellungen!L45","v":{"$error":"#N/A"}},null,{"$f":"Rückstellungen!M45","v":0}]
[{"$f":"Rückstellungen!$B$3","v":"XXXX"},null,{"$f":"Rückstellungen!$J$5","v":"LG"},null,null,{"$f":"Rückstellungen!$M$4","v":"2024-12-31"},null,null,{"$f":"Rückstellungen!$I$4","v":"UB RA Rückstellungen"},{"$f":"Rückstellungen!G46","v":0},{"$f":"IF(Rückstellungen!I46=\"Haben\",50,40)","v":40},{"$f":"IF(Rückstellungen!I46=\"Haben\",Rückstellungen!J46*-1,Rückstellungen!J46)","v":0},{"$f":"Rückstellungen!L46","v":{"$error":"#N/A"}},null,{"$f":"Rückstellungen!M46","v":0}]
[{"$f":"Rückstellungen!$B$3","v":"XXXX"},null,{"$f":"Rückstellungen!$J$5","v":"LG"},null,null,{"$f":"Rückstellungen!$M$4","v":"2024-12-31"},null,null,{"$f":"Rückstellungen!$I$4","v":"UB RA Rückstellungen"},{"$f":"Rückstellungen!G47","v":0},{"$f":"IF(Rückstellungen!I47=\"Haben\",50,40)","v":40},{"$f":"IF(Rückstellungen!I47=\"Haben\",Rückstellungen!J47*-1,Rückstellungen!J47)","v":0},{"$f":"Rückstellungen!L47","v":{"$error":"#N/A"}},null,{"$f":"Rückstellungen!M47","v":0}]
[{"$f":"Rückstellungen!$B$3","v":"XXXX"},null,{"$f":"Rückstellungen!$J$5","v":"LG"},null,null,{"$f":"Rückstellungen!$M$4","v":"2024-12-31"},null,null,{"$f":"Rückstellungen!$I$4","v":"UB RA Rückstellungen"},{"$f":"Rückstellungen!G48","v":0},{"$f":"IF(Rückstellungen!I48=\"Haben\",50,40)","v":40},{"$f":"IF(Rückstellungen!I48=\"Haben\",Rückstellungen!J48*-1,Rückstellungen!J48)","v":0},{"$f":"Rückstellungen!L48","v":{"$error":"#N/A"}},null,{"$f":"Rückstellungen!M48","v":0}]
[{"$f":"Rückstellungen!$B$3","v":"XXXX"},null,{"$f":"Rückstellungen!$J$5","v":"LG"},null,null,{"$f":"Rückstellungen!$M$4","v":"2024-12-31"},null,null,{"$f":"Rückstellungen!$I$4","v":"UB RA Rückstellungen"},{"$f":"Rückstellungen!G49","v":0},{"$f":"IF(Rückstellungen!I49=\"Haben\",50,40)","v":40},{"$f":"IF(Rückstellungen!I49=\"Haben\",Rückstellungen!J49*-1,Rückstellungen!J49)","v":0},{"$f":"Rückstellungen!L49","v":{"$error":"#N/A"}},null,{"$f":"Rückstellungen!M49","v":0}]
[{"$f":"Rückstellungen!$B$3","v":"XXXX"},null,{"$f":"Rückstellungen!$J$5","v":"LG"},null,null,{"$f":"Rückstellungen!$M$4","v":"2024-12-31"},null,null,{"$f":"Rückstellungen!$I$4","v":"UB RA Rückstellungen"},{"$f":"Rückstellungen!G50","v":0},{"$f":"IF(Rückstellungen!I50=\"Haben\",50,40)","v":40},{"$f":"IF(Rückstellungen!I50=\"Haben\",Rückstellungen!J50*-1,Rückstellungen!J50)","v":0},{"$f":"Rückstellungen!L50","v":{"$error":"#N/A"}},null,{"$f":"Rückstellungen!M50","v":0}]
[{"$f":"Rückstellungen!$B$3","v":"XXXX"},null,{"$f":"Rückstellungen!$J$5","v":"LG"},null,null,{"$f":"Rückstellungen!$M$4","v":"2024-12-31"},null,null,{"$f":"Rückstellungen!$I$4","v":"UB RA Rückstellungen"},{"$f":"Rückstellungen!G51","v":0},{"$f":"IF(Rückstellungen!I51=\"Haben\",50,40)","v":40},{"$f":"IF(Rückstellungen!I51=\"Haben\",Rückstellungen!J51*-1,Rückstellungen!J51)","v":0},{"$f":"Rückstellungen!L51","v":{"$error":"#N/A"}},null,{"$f":"Rückstellungen!M51","v":0}]
[{"$f":"Rückstellungen!$B$3","v":"XXXX"},null,{"$f":"Rückstellungen!$J$5","v":"LG"},null,null,{"$f":"Rückstellungen!$M$4","v":"2024-12-31"},null,null,{"$f":"Rückstellungen!$I$4","v":"UB RA Rückstellungen"},{"$f":"Rückstellungen!G52","v":0},{"$f":"IF(Rückstellungen!I52=\"Haben\",50,40)","v":40},{"$f":"IF(Rückstellungen!I52=\"Haben\",Rückstellungen!J52*-1,Rückstellungen!J52)","v":0},{"$f":"Rückstellungen!L52","v":{"$error":"#N/A"}},null,{"$f":"Rückstellungen!M52","v":0}]
[{"$f":"Rückstellungen!$B$3","v":"XXXX"},null,{"$f":"Rückstellungen!$J$5","v":"LG"},null,null,{"$f":"Rückstellungen!$M$4","v":"2024-12-31"},null,null,{"$f":"Rückstellungen!$I$4","v":"UB RA Rückstellungen"},{"$f":"Rückstellungen!G53","v":0},{"$f":"IF(Rückstellungen!I53=\"Haben\",50,40)","v":40},{"$f":"IF(Rückstellungen!I53=\"Haben\",Rückstellungen!J53*-1,Rückstellungen!J53)","v":0},{"$f":"Rückstellungen!L53","v":{"$error":"#N/A"}},null,{"$f":"Rückstellungen!M53","v":0}]
[{"$f":"Rückstellungen!$B$3","v":"XXXX"},null,{"$f":"Rückstellungen!$J$5","v":"LG"},null,null,{"$f":"Rückstellungen!$M$4","v":"2024-12-31"},null,null,{"$f":"Rückstellungen!$I$4","v":"UB RA Rückstellungen"},{"$f":"Rückstellungen!G54","v":0},{"$f":"IF(Rückstellungen!I54=\"Haben\",50,40)","v":40},{"$f":"IF(Rückstellungen!I54=\"Haben\",Rückstellungen!J54*-1,Rückstellungen!J54)","v":0},{"$f":"Rückstellungen!L54","v":{"$error":"#N/A"}},null,{"$f":"Rückstellungen!M54","v":0}]
[{"$f":"Rückstellungen!$B$3","v":"XXXX"},null,{"$f":"Rückstellungen!$J$5","v":"LG"},null,null,{"$f":"Rückstellungen!$M$4","v":"2024-12-31"},null,null,{"$f":"Rückstellungen!$I$4","v":"UB RA Rückstellungen"},{"$f":"Rückstellungen!G55","v":0},{"$f":"IF(Rückstellungen!I55=\"Haben\",50,40)","v":40},{"$f":"IF(Rückstellungen!I55=\"Haben\",Rückstellungen!J55*-1,Rückstellungen!J55)","v":0},{"$f":"Rückstellungen!L55","v":{"$error":"#N/A"}},null,{"$f":"Rückstellungen!M55","v":0}]
[{"$f":"Rückstellungen!$B$3","v":"XXXX"},null,{"$f":"Rückstellungen!$J$5","v":"LG"},null,null,{"$f":"Rückstellungen!$M$4","v":"2024-12-31"},null,null,{"$f":"Rückstellungen!$I$4","v":"UB RA Rückstellungen"},{"$f":"Rückstellungen!G56","v":0},{"$f":"IF(Rückstellungen!I56=\"Haben\",50,40)","v":40},{"$f":"IF(Rückstellungen!I56=\"Haben\",Rückstellungen!J56*-1,Rückstellungen!J56)","v":0},{"$f":"Rückstellungen!L56","v":{"$error":"#N/A"}},null,{"$f":"Rückstellungen!M56","v":0}]
[{"$f":"Rückstellungen!$B$3","v":"XXXX"},null,{"$f":"Rückstellungen!$J$5","v":"LG"},null,null,{"$f":"Rückstellungen!$M$4","v":"2024-12-31"},null,null,{"$f":"Rückstellungen!$I$4","v":"UB RA Rückstellungen"},{"$f":"Rückstellungen!G57","v":0},{"$f":"IF(Rückstellungen!I57=\"Haben\",50,40)","v":40},{"$f":"IF(Rückstellungen!I57=\"Haben\",Rückstellungen!J57*-1,Rückstellungen!J57)","v":0},{"$f":"Rückstellungen!L57","v":{"$error":"#N/A"}},null,{"$f":"Rückstellungen!M57","v":0}]
[{"$f":"Rückstellungen!$B$3","v":"XXXX"},null,{"$f":"Rückstellungen!$J$5","v":"LG"},null,null,{"$f":"Rückstellungen!$M$4","v":"2024-12-31"},null,null,{"$f":"Rückstellungen!$I$4","v":"UB RA Rückstellungen"},{"$f":"Rückstellungen!G58","v":0},{"$f":"IF(Rückstellungen!I58=\"Haben\",50,40)","v":40},{"$f":"IF(Rückstellungen!I58=\"Haben\",Rückstellungen!J58*-1,Rückstellungen!J58)","v":0},{"$f":"Rückstellungen!L58","v":{"$error":"#N/A"}},null,{"$f":"Rückstellungen!M58","v":0}]
[{"$f":"Rückstellungen!$B$3","v":"XXXX"},null,{"$f":"Rückstellungen!$J$5","v":"LG"},null,null,{"$f":"Rückstellungen!$M$4","v":"2024-12-31"},null,null,{"$f":"Rückstellungen!$I$4","v":"UB RA Rückstellungen"},{"$f":"Rückstellungen!G59","v":0},{"$f":"IF(Rückstellungen!I59=\"Haben\",50,40)","v":40},{"$f":"IF(Rückstellungen!I59=\"Haben\",Rückstellungen!J59*-1,Rückstellungen!J59)","v":0},{"$f":"Rückstellungen!L59","v":{"$error":"#N/A"}},null,{"$f":"Rückstellungen!M59","v":0}]
[{"$f":"Rückstellungen!$B$3","v":"XXXX"},null,{"$f":"Rückstellungen!$J$5","v":"LG"},null,null,{"$f":"Rückstellungen!$M$4","v":"2024-12-31"},null,null,{"$f":"Rückstellungen!$I$4","v":"UB RA Rückstellungen"},{"$f":"Rückstellungen!G60","v":0},{"$f":"IF(Rückstellungen!I60=\"Haben\",50,40)","v":40},{"$f":"IF(Rückstellungen!I60=\"Haben\",Rückstellungen!J60*-1,Rückstellungen!J60)","v":0},{"$f":"Rückstellungen!L60","v":{"$error":"#N/A"}},null,{"$f":"Rückstellungen!M60","v":0}]
[{"$f":"Rückstellungen!$B$3","v":"XXXX"},null,{"$f":"Rückstellungen!$J$5","v":"LG"},null,null,{"$f":"Rückstellungen!$M$4","v":"2024-12-31"},null,null,{"$f":"Rückstellungen!$I$4","v":"UB RA Rückstellungen"},{"$f":"Rückstellungen!G61","v":0},{"$f":"IF(Rückstellungen!I61=\"Haben\",50,40)","v":40},{"$f":"IF(Rückstellungen!I61=\"Haben\",Rückstellungen!J61*-1,Rückstellungen!J61)","v":0},{"$f":"Rückstellungen!L61","v":{"$error":"#N/A"}},null,{"$f":"Rückstellungen!M61","v":0}]
[{"$f":"Rückstellungen!$B$3","v":"XXXX"},null,{"$f":"Rückstellungen!$J$5","v":"LG"},null,null,{"$f":"Rückstellungen!$M$4","v":"2024-12-31"},null,null,{"$f":"Rückstellungen!$I$4","v":"UB RA Rückstellungen"},{"$f":"Rückstellungen!G62","v":0},{"$f":"IF(Rückstellungen!I62=\"Haben\",50,40)","v":40},{"$f":"IF(Rückstellungen!I62=\"Haben\",Rückstellungen!J62*-1,Rückstellungen!J62)","v":0},{"$f":"Rückstellungen!L62","v":{"$error":"#N/A"}},null,{"$f":"Rückstellungen!M62","v":0}]
[{"$f":"Rückstellungen!$B$3","v":"XXXX"},null,{"$f":"Rückstellungen!$J$5","v":"LG"},null,null,{"$f":"Rückstellungen!$M$4","v":"2024-12-31"},null,null,{"$f":"Rückstellungen!$I$4","v":"UB RA Rückstellungen"},{"$f":"Rückstellungen!G63","v":0},{"$f":"IF(Rückstellungen!I63=\"Haben\",50,40)","v":40},{"$f":"IF(Rückstellungen!I63=\"Haben\",Rückstellungen!J63*-1,Rückstellungen!J63)","v":0},{"$f":"Rückstellungen!L63","v":{"$error":"#N/A"}},null,{"$f":"Rückstellungen!M63","v":0}]
[{"$f":"Rückstellungen!$B$3","v":"XXXX"},null,{"$f":"Rückstellungen!$J$5","v":"LG"},null,null,{"$f":"Rückstellungen!$M$4","v":"2024-12-31"},null,null,{"$f":"Rückstellungen!$I$4","v":"UB RA Rückstellungen"},{"$f":"Rückstellungen!G64","v":0},{"$f":"IF(Rückstellungen!I64=\"Haben\",50,40)","v":40},{"$f":"IF(Rückstellungen!I64=\"Haben\",Rückstellungen!J64*-1,Rückstellungen!J64)","v":0},{"$f":"Rückstellungen!L64","v":{"$error":"#N/A"}},null,{"$f":"Rückstellungen!M64","v":0}]
[{"$f":"Rückstellungen!$B$3","v":"XXXX"},null,{"$f":"Rückstellungen!$J$5","v":"LG"},null,null,{"$f":"Rückstellungen!$M$4","v":"2024-12-31"},null,null,{"$f":"Rückstellungen!$I$4","v":"UB RA Rückstellungen"},{"$f":"Rückstellungen!G65","v":0},{"$f":"IF(Rückstellungen!I65=\"Haben\",50,40)","v":40},{"$f":"IF(Rückstellungen!I65=\"Haben\",Rückstellungen!J65*-1,Rückstellungen!J65)","v":0},{"$f":"Rückstellungen!L65","v":{"$error":"#N/A"}},null,{"$f":"Rückstellungen!M65","v":0}]
[{"$f":"Rückstellungen!$B$3","v":"XXXX"},null,{"$f":"Rückstellungen!$J$5","v":"LG"},null,null,{"$f":"Rückstellungen!$M$4","v":"2024-12-31"},null,null,{"$f":"Rückstellungen!$I$4","v":"UB RA Rückstellungen"},{"$f":"Rückstellungen!G66","v":0},{"$f":"IF(Rückstellungen!I66=\"Haben\",50,40)","v":40},{"$f":"IF(Rückstellungen!I66=\"Haben\",Rückstellungen!J66*-1,Rückstellungen!J66)","v":0},{"$f":"Rückstellungen!L66","v":{"$error":"#N/A"}},null,{"$f":"Rückstellungen!M66","v":0}]
[{"$f":"Rückstellungen!$B$3","v":"XXXX"},null,{"$f":"Rückstellungen!$J$5","v":"LG"},null,null,{"$f":"Rückstellungen!$M$4","v":"2024-12-31"},null,null,{"$f":"Rückstellungen!$I$4","v":"UB RA Rückstellungen"},{"$f":"Rückstellungen!G67","v":0},{"$f":"IF(Rückstellungen!I67=\"Haben\",50,40)","v":40},{"$f":"IF(Rückstellungen!I67=\"Haben\",Rückstellungen!J67*-1,Rückstellungen!J67)","v":0},{"$f":"Rückstellungen!L67","v":{"$error":"#N/A"}},null,{"$f":"Rückstellungen!M67","v":0}]
[{"$f":"Rückstellungen!$B$3","v":"XXXX"},null,{"$f":"Rückstellungen!$J$5","v":"LG"},null,null,{"$f":"Rückstellungen!$M$4","v":"2024-12-31"},null,null,{"$f":"Rückstellungen!$I$4","v":"UB RA Rückstellungen"},{"$f":"Rückstellungen!G68","v":0},{"$f":"IF(Rückstellungen!I68=\"Haben\",50,40)","v":40},{"$f":"IF(Rückstellungen!I68=\"Haben\",Rückstellungen!J68*-1,Rückstellungen!J68)","v":0},{"$f":"Rückstellungen!L68","v":{"$error":"#N/A"}},null,{"$f":"Rückstellungen!M68","v":0}]
[{"$f":"Rückstellungen!$B$3","v":"XXXX"},null,{"$f":"Rückstellungen!$J$5","v":"LG"},null,null,{"$f":"Rückstellungen!$M$4","v":"2024-12-31"},null,null,{"$f":"Rückstellungen!$I$4","v":"UB RA Rückstellungen"},{"$f":"Rückstellungen!G69","v":0},{"$f":"IF(Rückstellungen!I69=\"Haben\",50,40)","v":40},{"$f":"IF(Rückstellungen!I69=\"Haben\",Rückstellungen!J69*-1,Rückstellungen!J69)","v":0},{"$f":"Rückstellungen!L69","v":{"$error":"#N/A"}},null,{"$f":"Rückstellungen!M69","v":0}]
[{"$f":"Rückstellungen!$B$3","v":"XXXX"},null,{"$f":"Rückstellungen!$J$5","v":"LG"},null,null,{"$f":"Rückstellungen!$M$4","v":"2024-12-31"},null,null,{"$f":"Rückstellungen!$I$4","v":"UB RA Rückstellungen"},{"$f":"Rückstellungen!G70","v":0},{"$f":"IF(Rückstellungen!I70=\"Haben\",50,40)","v":40},{"$f":"IF(Rückstellungen!I70=\"Haben\",Rückstellungen!J70*-1,Rückstellungen!J70)","v":0},{"$f":"Rückstellungen!L70","v":{"$error":"#N/A"}},null,{"$f":"Rückstellungen!M70","v":0}]
[{"$f":"Rückstellungen!$B$3","v":"XXXX"},null,{"$f":"Rückstellungen!$J$5","v":"LG"},null,null,{"$f":"Rückstellungen!$M$4","v":"2024-12-31"},null,null,{"$f":"Rückstellungen!$I$4","v":"UB RA Rückstellungen"},{"$f":"Rückstellungen!G71","v":0},{"$f":"IF(Rückstellungen!I71=\"Haben\",50,40)","v":40},{"$f":"IF(Rückstellungen!I71=\"Haben\",Rückstellungen!J71*-1,Rückstellungen!J71)","v":0},{"$f":"Rückstellungen!L71","v":{"$error":"#N/A"}},null,{"$f":"Rückstellungen!M71","v":0}]
[{"$f":"Rückstellungen!$B$3","v":"XXXX"},null,{"$f":"Rückstellungen!$J$5","v":"LG"},null,null,{"$f":"Rückstellungen!$M$4","v":"2024-12-31"},null,null,{"$f":"Rückstellungen!$I$4","v":"UB RA Rückstellungen"},{"$f":"Rückstellungen!G72","v":0},{"$f":"IF(Rückstellungen!I72=\"Haben\",50,40)","v":40},{"$f":"IF(Rückstellungen!I72=\"Haben\",Rückstellungen!J72*-1,Rückstellungen!J72)","v":0},{"$f":"Rückstellungen!L72","v":{"$error":"#N/A"}},null,{"$f":"Rückstellungen!M72","v":0}]
[{"$f":"Rückstellungen!$B$3","v":"XXXX"},null,{"$f":"Rückstellungen!$J$5","v":"LG"},null,null,{"$f":"Rückstellungen!$M$4","v":"2024-12-31"},null,null,{"$f":"Rückstellungen!$I$4","v":"UB RA Rückstellungen"},{"$f":"Rückstellungen!G73","v":0},{"$f":"IF(Rückstellungen!I73=\"Haben\",50,40)","v":40},{"$f":"IF(Rückstellungen!I73=\"Haben\",Rückstellungen!J73*-1,Rückstellungen!J73)","v":0},{"$f":"Rückstellungen!L73","v":{"$error":"#N/A"}},null,{"$f":"Rückstellungen!M73","v":0}]
[{"$f":"Rückstellungen!$B$3","v":"XXXX"},null,{"$f":"Rückstellungen!$J$5","v":"LG"},null,null,{"$f":"Rückstellungen!$M$4","v":"2024-12-31"},null,null,{"$f":"Rückstellungen!$I$4","v":"UB RA Rückstellungen"},{"$f":"Rückstellungen!G74","v":0},{"$f":"IF(Rückstellungen!I74=\"Haben\",50,40)","v":40},{"$f":"IF(Rückstellungen!I74=\"Haben\",Rückstellungen!J74*-1,Rückstellungen!J74)","v":0},{"$f":"Rückstellungen!L74","v":{"$error":"#N/A"}},null,{"$f":"Rückstellungen!M74","v":0}]
[{"$f":"Rückstellungen!$B$3","v":"XXXX"},null,{"$f":"Rückstellungen!$J$5","v":"LG"},null,null,{"$f":"Rückstellungen!$M$4","v":"2024-12-31"},null,null,{"$f":"Rückstellungen!$I$4","v":"UB RA Rückstellungen"},{"$f":"Rückstellungen!G75","v":0},{"$f":"IF(Rückstellungen!I75=\"Haben\",50,40)","v":40},{"$f":"IF(Rückstellungen!I75=\"Haben\",Rückstellungen!J75*-1,Rückstellungen!J75)","v":0},{"$f":"Rückstellungen!L75","v":{"$error":"#N/A"}},null,{"$f":"Rückstellungen!M75","v":0}]
[{"$f":"Rückstellungen!$B$3","v":"XXXX"},null,{"$f":"Rückstellungen!$J$5","v":"LG"},null,null,{"$f":"Rückstellungen!$M$4","v":"2024-12-31"},null,null,{"$f":"Rückstellungen!$I$4","v":"UB RA Rückstellungen"},{"$f":"Rückstellungen!G76","v":0},{"$f":"IF(Rückstellungen!I76=\"Haben\",50,40)","v":40},{"$f":"IF(Rückstellungen!I76=\"Haben\",Rückstellungen!J76*-1,Rückstellungen!J76)","v":0},{"$f":"Rückstellungen!L76","v":{"$error":"#N/A"}},null,{"$f":"Rückstellungen!M76","v":0}]
[{"$f":"Rückstellungen!$B$3","v":"XXXX"},null,{"$f":"Rückstellungen!$J$5","v":"LG"},null,null,{"$f":"Rückstellungen!$M$4","v":"2024-12-31"},null,null,{"$f":"Rückstellungen!$I$4","v":"UB RA Rückstellungen"},{"$f":"Rückstellungen!G77","v":0},{"$f":"IF(Rückstellungen!I77=\"Haben\",50,40)","v":40},{"$f":"IF(Rückstellungen!I77=\"Haben\",Rückstellungen!J77*-1,Rückstellungen!J77)","v":0},{"$f":"Rückstellungen!L77","v":{"$error":"#N/A"}},null,{"$f":"Rückstellungen!M77","v":0}]
[{"$f":"Rückstellungen!$B$3","v":"XXXX"},null,{"$f":"Rückstellungen!$J$5","v":"LG"},null,null,{"$f":"Rückstellungen!$M$4","v":"2024-12-31"},null,null,{"$f":"Rückstellungen!$I$4","v":"UB RA Rückstellungen"},{"$f":"Rückstellungen!G78","v":0},{"$f":"IF(Rückstellungen!I78=\"Haben\",50,40)","v":40},{"$f":"IF(Rückstellungen!I78=\"Haben\",Rückstellungen!J78*-1,Rückstellungen!J78)","v":0},{"$f":"Rückstellungen!L78","v":{"$error":"#N/A"}},null,{"$f":"Rückstellungen!M78","v":0}]
[{"$f":"Rückstellungen!$B$3","v":"XXXX"},null,{"$f":"Rückstellungen!$J$5","v":"LG"},null,null,{"$f":"Rückstellungen!$M$4","v":"2024-12-31"},null,null,{"$f":"Rückstellungen!$I$4","v":"UB RA Rückstellungen"},{"$f":"Rückstellungen!G79","v":0},{"$f":"IF(Rückstellungen!I79=\"Haben\",50,40)","v":40},{"$f":"IF(Rückstellungen!I79=\"Haben\",Rückstellungen!J79*-1,Rückstellungen!J79)","v":0},{"$f":"Rückstellungen!L79","v":{"$error":"#N/A"}},null,{"$f":"Rückstellungen!M79","v":0}]
[{"$f":"Rückstellungen!$B$3","v":"XXXX"},null,{"$f":"Rückstellungen!$J$5","v":"LG"},null,null,{"$f":"Rückstellungen!$M$4","v":"2024-12-31"},null,null,{"$f":"Rückstellungen!$I$4","v":"UB RA Rückstellungen"},{"$f":"Rückstellungen!G80","v":0},{"$f":"IF(Rückstellungen!I80=\"Haben\",50,40)","v":40},{"$f":"IF(Rückstellungen!I80=\"Haben\",Rückstellungen!J80*-1,Rückstellungen!J80)","v":0},{"$f":"Rückstellungen!L80","v":{"$error":"#N/A"}},null,{"$f":"Rückstellungen!M80","v":0}]
[{"$f":"Rückstellungen!$B$3","v":"XXXX"},null,{"$f":"Rückstellungen!$J$5","v":"LG"},null,null,{"$f":"Rückstellungen!$M$4","v":"2024-12-31"},null,null,{"$f":"Rückstellungen!$I$4","v":"UB RA Rückstellungen"},{"$f":"Rückstellungen!G81","v":0},{"$f":"IF(Rückstellungen!I81=\"Haben\",50,40)","v":40},{"$f":"IF(Rückstellungen!I81=\"Haben\",Rückstellungen!J81*-1,Rückstellungen!J81)","v":0},{"$f":"Rückstellungen!L81","v":{"$error":"#N/A"}},null,{"$f":"Rückstellungen!M81","v":0}]
[{"$f":"Rückstellungen!$B$3","v":"XXXX"},null,{"$f":"Rückstellungen!$J$5","v":"LG"},null,null,{"$f":"Rückstellungen!$M$4","v":"2024-12-31"},null,null,{"$f":"Rückstellungen!$I$4","v":"UB RA Rückstellungen"},{"$f":"Rückstellungen!G82","v":0},{"$f":"IF(Rückstellungen!I82=\"Haben\",50,40)","v":40},{"$f":"IF(Rückstellungen!I82=\"Haben\",Rückstellungen!J82*-1,Rückstellungen!J82)","v":0},{"$f":"Rückstellungen!L82","v":{"$error":"#N/A"}},null,{"$f":"Rückstellungen!M82","v":0}]
[{"$f":"Rückstellungen!$B$3","v":"XXXX"},null,{"$f":"Rückstellungen!$J$5","v":"LG"},null,null,{"$f":"Rückstellungen!$M$4","v":"2024-12-31"},null,null,{"$f":"Rückstellungen!$I$4","v":"UB RA Rückstellungen"},{"$f":"Rückstellungen!G83","v":0},{"$f":"IF(Rückstellungen!I83=\"Haben\",50,40)","v":40},{"$f":"IF(Rückstellungen!I83=\"Haben\",Rückstellungen!J83*-1,Rückstellungen!J83)","v":0},{"$f":"Rückstellungen!L83","v":{"$error":"#N/A"}},null,{"$f":"Rückstellungen!M83","v":0}]
[{"$f":"Rückstellungen!$B$3","v":"XXXX"},null,{"$f":"Rückstellungen!$J$5","v":"LG"},null,null,{"$f":"Rückstellungen!$M$4","v":"2024-12-31"},null,null,{"$f":"Rückstellungen!$I$4","v":"UB RA Rückstellungen"},{"$f":"Rückstellungen!G84","v":0},{"$f":"IF(Rückstellungen!I84=\"Haben\",50,40)","v":40},{"$f":"IF(Rückstellungen!I84=\"Haben\",Rückstellungen!J84*-1,Rückstellungen!J84)","v":0},{"$f":"Rückstellungen!L84","v":{"$error":"#N/A"}},null,{"$f":"Rückstellungen!M84","v":0}]
[{"$f":"Rückstellungen!$B$3","v":"XXXX"},null,{"$f":"Rückstellungen!$J$5","v":"LG"},null,null,{"$f":"Rückstellungen!$M$4","v":"2024-12-31"},null,null,{"$f":"Rückstellungen!$I$4","v":"UB RA Rückstellungen"},{"$f":"Rückstellungen!G85","v":0},{"$f":"IF(Rückstellungen!I85=\"Haben\",50,40)","v":40},{"$f":"IF(Rückstellungen!I85=\"Haben\",Rückstellungen!J85*-1,Rückstellungen!J85)","v":0},{"$f":"Rückstellungen!L85","v":{"$error":"#N/A"}},null,{"$f":"Rückstellungen!M85","v":0}]
[{"$f":"Rückstellungen!$B$3","v":"XXXX"},null,{"$f":"Rückstellungen!$J$5","v":"LG"},null,null,{"$f":"Rückstellungen!$M$4","v":"2024-12-31"},null,null,{"$f":"Rückstellungen!$I$4","v":"UB RA Rückstellungen"},{"$f":"Rückstellungen!G86","v":0},{"$f":"IF(Rückstellungen!I86=\"Haben\",50,40)","v":40},{"$f":"IF(Rückstellungen!I86=\"Haben\",Rückstellungen!J86*-1,Rückstellungen!J86)","v":0},{"$f":"Rückstellungen!L86","v":{"$error":"#N/A"}},null,{"$f":"Rückstellungen!M86","v":0}]
[{"$f":"Rückstellungen!$B$3","v":"XXXX"},null,{"$f":"Rückstellungen!$J$5","v":"LG"},null,null,{"$f":"Rückstellungen!$M$4","v":"2024-12-31"},null,null,{"$f":"Rückstellungen!$I$4","v":"UB RA Rückstellungen"},{"$f":"Rückstellungen!G87","v":0},{"$f":"IF(Rückstellungen!I87=\"Haben\",50,40)","v":40},{"$f":"IF(Rückstellungen!I87=\"Haben\",Rückstellungen!J87*-1,Rückstellungen!J87)","v":0},{"$f":"Rückstellungen!L87","v":{"$error":"#N/A"}},null,{"$f":"Rückstellungen!M87","v":0}]
[{"$f":"Rückstellungen!$B$3","v":"XXXX"},null,{"$f":"Rückstellungen!$J$5","v":"LG"},null,null,{"$f":"Rückstellungen!$M$4","v":"2024-12-31"},null,null,{"$f":"Rückstellungen!$I$4","v":"UB RA Rückstellungen"},{"$f":"Rückstellungen!G88","v":0},{"$f":"IF(Rückstellungen!I88=\"Haben\",50,40)","v":40},{"$f":"IF(Rückstellungen!I88=\"Haben\",Rückstellungen!J88*-1,Rückstellungen!J88)","v":0},{"$f":"Rückstellungen!L88","v":{"$error":"#N/A"}},null,{"$f":"Rückstellungen!M88","v":0}]
[{"$f":"Rückstellungen!$B$3","v":"XXXX"},null,{"$f":"Rückstellungen!$J$5","v":"LG"},null,null,{"$f":"Rückstellungen!$M$4","v":"2024-12-31"},null,null,{"$f":"Rückstellungen!$I$4","v":"UB RA Rückstellungen"},{"$f":"Rückstellungen!G89","v":0},{"$f":"IF(Rückstellungen!I89=\"Haben\",50,40)","v":40},{"$f":"IF(Rückstellungen!I89=\"Haben\",Rückstellungen!J89*-1,Rückstellungen!J89)","v":0},{"$f":"Rückstellungen!L89","v":{"$error":"#N/A"}},null,{"$f":"Rückstellungen!M89","v":0}]
[{"$f":"Rückstellungen!$B$3","v":"XXXX"},null,{"$f":"Rückstellungen!$J$5","v":"LG"},null,null,{"$f":"Rückstellungen!$M$4","v":"2024-12-31"},null,null,{"$f":"Rückstellungen!$I$4","v":"UB RA Rückstellungen"},{"$f":"Rückstellungen!G90","v":0},{"$f":"IF(Rückstellungen!I90=\"Haben\",50,40)","v":40},{"$f":"IF(Rückstellungen!I90=\"Haben\",Rückstellungen!J90*-1,Rückstellungen!J90)","v":0},{"$f":"Rückstellungen!L90","v":{"$error":"#N/A"}},null,{"$f":"Rückstellungen!M90","v":0}]
[{"$f":"Rückstellungen!$B$3","v":"XXXX"},null,{"$f":"Rückstellungen!$J$5","v":"LG"},null,null,{"$f":"Rückstellungen!$M$4","v":"2024-12-31"},null,null,{"$f":"Rückstellungen!$I$4","v":"UB RA Rückstellungen"},{"$f":"Rückstellungen!G91","v":0},{"$f":"IF(Rückstellungen!I91=\"Haben\",50,40)","v":40},{"$f":"IF(Rückstellungen!I91=\"Haben\",Rückstellungen!J91*-1,Rückstellungen!J91)","v":0},{"$f":"Rückstellungen!L91","v":{"$error":"#N/A"}},null,{"$f":"Rückstellungen!M91","v":0}]
[{"$f":"Rückstellungen!$B$3","v":"XXXX"},null,{"$f":"Rückstellungen!$J$5","v":"LG"},null,null,{"$f":"Rückstellungen!$M$4","v":"2024-12-31"},null,null,{"$f":"Rückstellungen!$I$4","v":"UB RA Rückstellungen"},{"$f":"Rückstellungen!G92","v":0},{"$f":"IF(Rückstellungen!I92=\"Haben\",50,40)","v":40},{"$f":"IF(Rückstellungen!I92=\"Haben\",Rückstellungen!J92*-1,Rückstellungen!J92)","v":0},{"$f":"Rückstellungen!L92","v":{"$error":"#N/A"}},null,{"$f":"Rückstellungen!M92","v":0}]
[{"$f":"Rückstellungen!$B$3","v":"XXXX"},null,{"$f":"Rückstellungen!$J$5","v":"LG"},null,null,{"$f":"Rückstellungen!$M$4","v":"2024-12-31"},null,null,{"$f":"Rückstellungen!$I$4","v":"UB RA Rückstellungen"},{"$f":"Rückstellungen!G93","v":0},{"$f":"IF(Rückstellungen!I93=\"Haben\",50,40)","v":40},{"$f":"IF(Rückstellungen!I93=\"Haben\",Rückstellungen!J93*-1,Rückstellungen!J93)","v":0},{"$f":"Rückstellungen!L93","v":{"$error":"#N/A"}},null,{"$f":"Rückstellungen!M93","v":0}]
[{"$f":"Rückstellungen!$B$3","v":"XXXX"},null,{"$f":"Rückstellungen!$J$5","v":"LG"},null,null,{"$f":"Rückstellungen!$M$4","v":"2024-12-31"},null,null,{"$f":"Rückstellungen!$I$4","v":"UB RA Rückstellungen"},{"$f":"Rückstellungen!G94","v":0},{"$f":"IF(Rückstellungen!I94=\"Haben\",50,40)","v":40},{"$f":"IF(Rückstellungen!I94=\"Haben\",Rückstellungen!J94*-1,Rückstellungen!J94)","v":0},{"$f":"Rückstellungen!L94","v":{"$error":"#N/A"}},null,{"$f":"Rückstellungen!M94","v":0}]
[{"$f":"Rückstellungen!$B$3","v":"XXXX"},null,{"$f":"Rückstellungen!$J$5","v":"LG"},null,null,{"$f":"Rückstellungen!$M$4","v":"2024-12-31"},null,null,{"$f":"Rückstellungen!$I$4","v":"UB RA Rückstellungen"},{"$f":"Rückstellungen!G95","v":0},{"$f":"IF(Rückstellungen!I95=\"Haben\",50,40)","v":40},{"$f":"IF(Rückstellungen!I95=\"Haben\",Rückstellungen!J95*-1,Rückstellungen!J95)","v":0},{"$f":"Rückstellungen!L95","v":{"$error":"#N/A"}},null,{"$f":"Rückstellungen!M95","v":0}]
[{"$f":"Rückstellungen!$B$3","v":"XXXX"},null,{"$f":"Rückstellungen!$J$5","v":"LG"},null,null,{"$f":"Rückstellungen!$M$4","v":"2024-12-31"},null,null,{"$f":"Rückstellungen!$I$4","v":"UB RA Rückstellungen"},{"$f":"Rückstellungen!G96","v":0},{"$f":"IF(Rückstellungen!I96=\"Haben\",50,40)","v":40},{"$f":"IF(Rückstellungen!I96=\"Haben\",Rückstellungen!J96*-1,Rückstellungen!J96)","v":0},{"$f":"Rückstellungen!L96","v":{"$error":"#N/A"}},null,{"$f":"Rückstellungen!M96","v":0}]
[{"$f":"Rückstellungen!$B$3","v":"XXXX"},null,{"$f":"Rückstellungen!$J$5","v":"LG"},null,null,{"$f":"Rückstellungen!$M$4","v":"2024-12-31"},null,null,{"$f":"Rückstellungen!$I$4","v":"UB RA Rückstellungen"},{"$f":"Rückstellungen!G97","v":0},{"$f":"IF(Rückstellungen!I97=\"Haben\",50,40)","v":40},{"$f":"IF(Rückstellungen!I97=\"Haben\",Rückstellungen!J97*-1,Rückstellungen!J97)","v":0},{"$f":"Rückstellungen!L97","v":{"$error":"#N/A"}},null,{"$f":"Rückstellungen!M97","v":0}]
[{"$f":"Rückstellungen!$B$3","v":"XXXX"},null,{"$f":"Rückstellungen!$J$5","v":"LG"},null,null,{"$f":"Rückstellungen!$M$4","v":"2024-12-31"},null,null,{"$f":"Rückstellungen!$I$4","v":"UB RA Rückstellungen"},{"$f":"Rückstellungen!G98","v":0},{"$f":"IF(Rückstellungen!I98=\"Haben\",50,40)","v":40},{"$f":"IF(Rückstellungen!I98=\"Haben\",Rückstellungen!J98*-1,Rückstellungen!J98)","v":0},{"$f":"Rückstellungen!L98","v":{"$error":"#N/A"}},null,{"$f":"Rückstellungen!M98","v":0}]
[{"$f":"Rückstellungen!$B$3","v":"XXXX"},null,{"$f":"Rückstellungen!$J$5","v":"LG"},null,null,{"$f":"Rückstellungen!$M$4","v":"2024-12-31"},null,null,{"$f":"Rückstellungen!$I$4","v":"UB RA Rückstellungen"},{"$f":"Rückstellungen!G99","v":0},{"$f":"IF(Rückstellungen!I99=\"Haben\",50,40)","v":40},{"$f":"IF(Rückstellungen!I99=\"Haben\",Rückstellungen!J99*-1,Rückstellungen!J99)","v":0},{"$f":"Rückstellungen!L99","v":{"$error":"#N/A"}},null,{"$f":"Rückstellungen!M99","v":0}]
[{"$f":"Rückstellungen!$B$3","v":"XXXX"},null,{"$f":"Rückstellungen!$J$5","v":"LG"},null,null,{"$f":"Rückstellungen!$M$4","v":"2024-12-31"},null,null,{"$f":"Rückstellungen!$I$4","v":"UB RA Rückstellungen"},{"$f":"Rückstellungen!G100","v":0},{"$f":"IF(Rückstellungen!I100=\"Haben\",50,40)","v":40},{"$f":"IF(Rückstellungen!I100=\"Haben\",Rückstellungen!J100*-1,Rückstellungen!J100)","v":0},{"$f":"Rückstellungen!L100","v":{"$error":"#N/A"}},null,{"$f":"Rückstellungen!M100","v":0}]
[{"$f":"Rückstellungen!$B$3","v":"XXXX"},null,{"$f":"Rückstellungen!$J$5","v":"LG"},null,null,{"$f":"Rückstellungen!$M$4","v":"2024-12-31"},null,null,{"$f":"Rückstellungen!$I$4","v":"UB RA Rückstellungen"},{"$f":"Rückstellungen!G101","v":0},{"$f":"IF(Rückstellungen!I101=\"Haben\",50,40)","v":40},{"$f":"IF(Rückstellungen!I101=\"Haben\",Rückstellungen!J101*-1,Rückstellungen!J101)","v":0},{"$f":"Rückstellungen!L101","v":{"$error":"#N/A"}},null,{"$f":"Rückstellungen!M101","v":0}]
[{"$f":"Rückstellungen!$B$3","v":"XXXX"},null,{"$f":"Rückstellungen!$J$5","v":"LG"},null,null,{"$f":"Rückstellungen!$M$4","v":"2024-12-31"},null,null,{"$f":"Rückstellungen!$I$4","v":"UB RA Rückstellungen"},{"$f":"Rückstellungen!G102","v":0},{"$f":"IF(Rückstellungen!I102=\"Haben\",50,40)","v":40},{"$f":"IF(Rückstellungen!I102=\"Haben\",Rückstellungen!J102*-1,Rückstellungen!J102)","v":0},{"$f":"Rückstellungen!L102","v":{"$error":"#N/A"}},null,{"$f":"Rückstellungen!M102","v":0}]
[{"$f":"Rückstellungen!$B$3","v":"XXXX"},null,{"$f":"Rückstellungen!$J$5","v":"LG"},null,null,{"$f":"Rückstellungen!$M$4","v":"2024-12-31"},null,null,{"$f":"Rückstellungen!$I$4","v":"UB RA Rückstellungen"},{"$f":"Rückstellungen!G103","v":0},{"$f":"IF(Rückstellungen!I103=\"Haben\",50,40)","v":40},{"$f":"IF(Rückstellungen!I103=\"Haben\",Rückstellungen!J103*-1,Rückstellungen!J103)","v":0},{"$f":"Rückstellungen!L103","v":{"$error":"#N/A"}},null,{"$f":"Rückstellungen!M103","v":0}]
[{"$f":"Rückstellungen!$B$3","v":"XXXX"},null,{"$f":"Rückstellungen!$J$5","v":"LG"},null,null,{"$f":"Rückstellungen!$M$4","v":"2024-12-31"},null,null,{"$f":"Rückstellungen!$I$4","v":"UB RA Rückstellungen"},{"$f":"Rückstellungen!G104","v":0},{"$f":"IF(Rückstellungen!I104=\"Haben\",50,40)","v":40},{"$f":"IF(Rückstellungen!I104=\"Haben\",Rückstellungen!J104*-1,Rückstellungen!J104)","v":0},{"$f":"Rückstellungen!L104","v":{"$error":"#N/A"}},null,{"$f":"Rückstellungen!M104","v":0}]
[{"$f":"Rückstellungen!$B$3","v":"XXXX"},null,{"$f":"Rückstellungen!$J$5","v":"LG"},null,null,{"$f":"Rückstellungen!$M$4","v":"2024-12-31"},null,null,{"$f":"Rückstellungen!$I$4","v":"UB RA Rückstellungen"},{"$f":"Rückstellungen!G105","v":0},{"$f":"IF(Rückstellungen!I105=\"Haben\",50,40)","v":40},{"$f":"IF(Rückstellungen!I105=\"Haben\",Rückstellungen!J105*-1,Rückstellungen!J105)","v":0},{"$f":"Rückstellungen!L105","v":{"$error":"#N/A"}},null,{"$f":"Rückstellungen!M105","v":0}]
[{"$f":"Rückstellungen!$B$3","v":"XXXX"},null,{"$f":"Rückstellungen!$J$5","v":"LG"},null,null,{"$f":"Rückstellungen!$M$4","v":"2024-12-31"},null,null,{"$f":"Rückstellungen!$I$4","v":"UB RA Rückstellungen"},{"$f":"Rückstellungen!G106","v":0},{"$f":"IF(Rückstellungen!I106=\"Haben\",50,40)","v":40},{"$f":"IF(Rückstellungen!I106=\"Haben\",Rückstellungen!J106*-1,Rückstellungen!J106)","v":0},{"$f":"Rückstellungen!L106","v":{"$error":"#N/A"}},null,{"$f":"Rückstellungen!M106","v":0}]
[{"$f":"Rückstellungen!$B$3","v":"XXXX"},null,{"$f":"Rückstellungen!$J$5","v":"LG"},null,null,{"$f":"Rückstellungen!$M$4","v":"2024-12-31"},null,null,{"$f":"Rückstellungen!$I$4","v":"UB RA Rückstellungen"},{"$f":"Rückstellungen!G107","v":0},{"$f":"IF(Rückstellungen!I107=\"Haben\",50,40)","v":40},{"$f":"IF(Rückstellungen!I107=\"Haben\",Rückstellungen!J107*-1,Rückstellungen!J107)","v":0},{"$f":"Rückstellungen!L107","v":{"$error":"#N/A"}},null,{"$f":"Rückstellungen!M107","v":0}]
[{"$f":"Rückstellungen!$B$3","v":"XXXX"},null,{"$f":"Rückstellungen!$J$5","v":"LG"},null,null,{"$f":"Rückstellungen!$M$4","v":"2024-12-31"},null,null,{"$f":"Rückstellungen!$I$4","v":"UB RA Rückstellungen"},{"$f":"Rückstellungen!O7","v":817500},{"$f":"IF(Rückstellungen!Q7=\"Haben\",50,40)","v":50},{"$f":"IF(Rückstellungen!Q7=\"Haben\",Rückstellungen!R7*-1,Rückstellungen!R7)","v":181200},{"$f":"Rückstellungen!T7","v":"UB RA Jubiläum"},null,{"$f":"Rückstellungen!U7","v":10000}]
[{"$f":"Rückstellungen!$B$3","v":"XXXX"},null,{"$f":"Rückstellungen!$J$5","v":"LG"},null,null,{"$f":"Rückstellungen!$M$4","v":"2024-12-31"},null,null,{"$f":"Rückstellungen!$I$4","v":"UB RA Rückstellungen"},{"$f":"Rückstellungen!O8","v":817500},{"$f":"IF(Rückstellungen!Q8=\"Haben\",50,40)","v":50},{"$f":"IF(Rückstellungen!Q8=\"Haben\",Rückstellungen!R8*-1,Rückstellungen!R8)","v":20700},{"$f":"Rückstellungen!T8","v":"UB RA Jubiläum"},null,{"$f":"Rückstellungen!U8","v":22000}]
[{"$f":"Rückstellungen!$B$3","v":"XXXX"},null,{"$f":"Rückstellungen!$J$5","v":"LG"},null,null,{"$f":"Rückstellungen!$M$4","v":"2024-12-31"},null,null,{"$f":"Rückstellungen!$I$4","v":"UB RA Rückstellungen"},{"$f":"Rückstellungen!O9","v":817500},{"$f":"IF(Rückstellungen!Q9=\"Haben\",50,40)","v":50},{"$f":"IF(Rückstellungen!Q9=\"Haben\",Rückstellungen!R9*-1,Rückstellungen!R9)","v":132100},{"$f":"Rückstellungen!T9","v":"UB RA Jubiläum"},null,{"$f":"Rückstellungen!U9","v":30000}]
[{"$f":"Rückstellungen!$B$3","v":"XXXX"},null,{"$f":"Rückstellungen!$J$5","v":"LG"},null,null,{"$f":"Rückstellungen!$M$4","v":"2024-12-31"},null,null,{"$f":"Rückstellungen!$I$4","v":"UB RA Rückstellungen"},{"$f":"Rückstellungen!O10","v":817500},{"$f":"IF(Rückstellungen!Q10=\"Haben\",50,40)","v":50},{"$f":"IF(Rückstellungen!Q10=\"Haben\",Rückstellungen!R10*-1,Rückstellungen!R10)","v":20100},{"$f":"Rückstellungen!T10","v":"UB RA Jubiläum"},null,{"$f":"Rückstellungen!U10","v":163100}]
[{"$f":"Rückstellungen!$B$3","v":"XXXX"},null,{"$f":"Rückstellungen!$J$5","v":"LG"},null,null,{"$f":"Rückstellungen!$M$4","v":"2024-12-31"},null,null,{"$f":"Rückstellungen!$I$4","v":"UB RA Rückstellungen"},{"$f":"Rückstellungen!O11","v":817500},{"$f":"IF(Rückstellungen!Q11=\"Haben\",50,40)","v":50},{"$f":"IF(Rückstellungen!Q11=\"Haben\",Rückstellungen!R11*-1,Rückstellungen!R11)","v":10440.81},{"$f":"Rückstellungen!T11","v":"UB RA Jubiläum"},null,{"$f":"Rückstellungen!U11","v":211100}]
[{"$f":"Rückstellungen!$B$3","v":"XXXX"},null,{"$f":"Rückstellungen!$J$5","v":"LG"},null,null,{"$f":"Rückstellungen!$M$4","v":"2024-12-31"},null,null,{"$f":"Rückstellungen!$I$4","v":"UB RA Rückstellungen"},{"$f":"Rückstellungen!O12","v":817500},{"$f":"IF(Rückstellungen!Q12=\"Haben\",50,40)","v":50},{"$f":"IF(Rückstellungen!Q12=\"Haben\",Rückstellungen!R12*-1,Rückstellungen!R12)","v":8959.19},{"$f":"Rückstellungen!T12","v":"UB RA Jubiläum"},null,{"$f":"Rückstellungen!U12","v":211110}]
[{"$f":"Rückstellungen!$B$3","v":"XXXX"},null,{"$f":"Rückstellungen!$J$5","v":"LG"},null,null,{"$f":"Rückstellungen!$M$4","v":"2024-12-31"},null,null,{"$f":"Rückstellungen!$I$4","v":"UB RA Rückstellungen"},{"$f":"Rückstellungen!O13","v":592000},{"$f":"IF(Rückstellungen!Q13=\"Haben\",50,40)","v":40},{"$f":"IF(Rückstellungen!Q13=\"Haben\",Rückstellungen!R13*-1,Rückstellungen!R13)","v":3299.78},{"$f":"Rückstellungen!T13","v":"UB RA Jubiläum"},null,{"$f":"Rückstellungen!U13","v":211300}]
[{"$f":"Rückstellungen!$B$3","v":"XXXX"},null,{"$f":"Rückstellungen!$J$5","v":"LG"},null,null,{"$f":"Rückstellungen!$M$4","v":"2024-12-31"},null,null,{"$f":"Rückstellungen!$I$4","v":"UB RA Rückstellungen"},{"$f":"Rückstellungen!O14","v":817500},{"$f":"IF(Rückstellungen!Q14=\"Haben\",50,40)","v":50},{"$f":"IF(Rückstellungen!Q14=\"Haben\",Rückstellungen!R14*-1,Rückstellungen!R14)","v":3299.78},{"$f":"Rückstellungen!T14","v":"UB RA Jubiläum"},null,{"$f":"Rückstellungen!U14","v":211310}]
[{"$f":"Rückstellungen!$B$3","v":"XXXX"},null,{"$f":"Rückstellungen!$J$5","v":"LG"},null,null,{"$f":"Rückstellungen!$M$4","v":"2024-12-31"},null,null,{"$f":"Rückstellungen!$I$4","v":"UB RA Rückstellungen"},{"$f":"Rückstellungen!O15","v":817500},{"$f":"IF(Rückstellungen!Q15=\"Haben\",50,40)","v":50},{"$f":"IF(Rückstellungen!Q15=\"Haben\",Rückstellungen!R15*-1,Rückstellungen!R15)","v":12507.28},{"$f":"Rückstellungen!T15","v":"UB RA Jubiläum"},null,{"$f":"Rückstellungen!U15","v":211400}]
[{"$f":"Rückstellungen!$B$3","v":"XXXX"},null,{"$f":"Rückstellungen!$J$5","v":"LG"},null,null,{"$f":"Rückstellungen!$M$4","v":"2024-12-31"},null,null,{"$f":"Rückstellungen!$I$4","v":"UB RA Rückstellungen"},{"$f":"Rückstellungen!O16","v":817500},{"$f":"IF(Rückstellungen!Q16=\"Haben\",50,40)","v":50},{"$f":"IF(Rückstellungen!Q16=\"Haben\",Rückstellungen!R16*-1,Rückstellungen!R16)","v":2092.7199999999998},{"$f":"Rückstellungen!T16","v":"UB RA Jubiläum"},null,{"$f":"Rückstellungen!U16","v":211410}]
[{"$f":"Rückstellungen!$B$3","v":"XXXX"},null,{"$f":"Rückstellungen!$J$5","v":"LG"},null,null,{"$f":"Rückstellungen!$M$4","v":"2024-12-31"},null,null,{"$f":"Rückstellungen!$I$4","v":"UB RA Rückstellungen"},{"$f":"Rückstellungen!O17","v":{"$error":"#N/A"}},{"$f":"IF(Rückstellungen!Q17=\"Haben\",50,40)","v":50},{"$f":"IF(Rückstellungen!Q17=\"Haben\",Rückstellungen!R17*-1,Rückstellungen!R17)","v":0},{"$f":"Rückstellungen!T17","v":{"$error":"#N/A"}},null,{"$f":"Rückstellungen!U17","v":0}]
[{"$f":"Rückstellungen!$B$3","v":"XXXX"},null,{"$f":"Rückstellungen!$J$5","v":"LG"},null,null,{"$f":"Rückstellungen!$M$4","v":"2024-12-31"},null,null,{"$f":"Rückstellungen!$I$4","v":"UB RA Rückstellungen"},{"$f":"Rückstellungen!O18","v":{"$error":"#N/A"}},{"$f":"IF(Rückstellungen!Q18=\"Haben\",50,40)","v":50},{"$f":"IF(Rückstellungen!Q18=\"Haben\",Rückstellungen!R18*-1,Rückstellungen!R18)","v":0},{"$f":"Rückstellungen!T18","v":{"$error":"#N/A"}},null,{"$f":"Rückstellungen!U18","v":0}]
[{"$f":"Rückstellungen!$B$3","v":"XXXX"},null,{"$f":"Rückstellungen!$J$5","v":"LG"},null,null,{"$f":"Rückstellungen!$M$4","v":"2024-12-31"},null,null,{"$f":"Rückstellungen!$I$4","v":"UB RA Rückstellungen"},{"$f":"Rückstellungen!O19","v":{"$error":"#N/A"}},{"$f":"IF(Rückstellungen!Q19=\"Haben\",50,40)","v":50},{"$f":"IF(Rückstellungen!Q19=\"Haben\",Rückstellungen!R19*-1,Rückstellungen!R19)","v":0},{"$f":"Rückstellungen!T19","v":{"$error":"#N/A"}},null,{"$f":"Rückstellungen!U19","v":0}]
[{"$f":"Rückstellungen!$B$3","v":"XXXX"},null,{"$f":"Rückstellungen!$J$5","v":"LG"},null,null,{"$f":"Rückstellungen!$M$4","v":"2024-12-31"},null,null,{"$f":"Rückstellungen!$I$4","v":"UB RA Rückstellungen"},{"$f":"Rückstellungen!O20","v":{"$error":"#N/A"}},{"$f":"IF(Rückstellungen!Q20=\"Haben\",50,40)","v":50},{"$f":"IF(Rückstellungen!Q20=\"Haben\",Rückstellungen!R20*-1,Rückstellungen!R20)","v":0},{"$f":"Rückstellungen!T20","v":{"$error":"#N/A"}},null,{"$f":"Rückstellungen!U20","v":0}]
[{"$f":"Rückstellungen!$B$3","v":"XXXX"},null,{"$f":"Rückstellungen!$J$5","v":"LG"},null,null,{"$f":"Rückstellungen!$M$4","v":"2024-12-31"},null,null,{"$f":"Rückstellungen!$I$4","v":"UB RA Rückstellungen"},{"$f":"Rückstellungen!O21","v":{"$error":"#N/A"}},{"$f":"IF(Rückstellungen!Q21=\"Haben\",50,40)","v":50},{"$f":"IF(Rückstellungen!Q21=\"Haben\",Rückstellungen!R21*-1,Rückstellungen!R21)","v":0},{"$f":"Rückstellungen!T21","v":{"$error":"#N/A"}},null,{"$f":"Rückstellungen!U21","v":0}]
[{"$f":"Rückstellungen!$B$3","v":"XXXX"},null,{"$f":"Rückstellungen!$J$5","v":"LG"},null,null,{"$f":"Rückstellungen!$M$4","v":"2024-12-31"},null,null,{"$f":"Rückstellungen!$I$4","v":"UB RA Rückstellungen"},{"$f":"Rückstellungen!O22","v":{"$error":"#N/A"}},{"$f":"IF(Rückstellungen!Q22=\"Haben\",50,40)","v":50},{"$f":"IF(Rückstellungen!Q22=\"Haben\",Rückstellungen!R22*-1,Rückstellungen!R22)","v":0},{"$f":"Rückstellungen!T22","v":{"$error":"#N/A"}},null,{"$f":"Rückstellungen!U22","v":0}]
[{"$f":"Rückstellungen!$B$3","v":"XXXX"},null,{"$f":"Rückstellungen!$J$5","v":"LG"},null,null,{"$f":"Rückstellungen!$M$4","v":"2024-12-31"},null,null,{"$f":"Rückstellungen!$I$4","v":"UB RA Rückstellungen"},{"$f":"Rückstellungen!O23","v":{"$error":"#N/A"}},{"$f":"IF(Rückstellungen!Q23=\"Haben\",50,40)","v":50},{"$f":"IF(Rückstellungen!Q23=\"Haben\",Rückstellungen!R23*-1,Rückstellungen!R23)","v":0},{"$f":"Rückstellungen!T23","v":{"$error":"#N/A"}},null,{"$f":"Rückstellungen!U23","v":0}]
[{"$f":"Rückstellungen!$B$3","v":"XXXX"},null,{"$f":"Rückstellungen!$J$5","v":"LG"},null,null,{"$f":"Rückstellungen!$M$4","v":"2024-12-31"},null,null,{"$f":"Rückstellungen!$I$4","v":"UB RA Rückstellungen"},{"$f":"Rückstellungen!O24","v":{"$error":"#N/A"}},{"$f":"IF(Rückstellungen!Q24=\"Haben\",50,40)","v":50},{"$f":"IF(Rückstellungen!Q24=\"Haben\",Rückstellungen!R24*-1,Rückstellungen!R24)","v":0},{"$f":"Rückstellungen!T24","v":{"$error":"#N/A"}},null,{"$f":"Rückstellungen!U24","v":0}]
[{"$f":"Rückstellungen!$B$3","v":"XXXX"},null,{"$f":"Rückstellungen!$J$5","v":"LG"},null,null,{"$f":"Rückstellungen!$M$4","v":"2024-12-31"},null,null,{"$f":"Rückstellungen!$I$4","v":"UB RA Rückstellungen"},{"$f":"Rückstellungen!O25","v":{"$error":"#N/A"}},{"$f":"IF(Rückstellungen!Q25=\"Haben\",50,40)","v":50},{"$f":"IF(Rückstellungen!Q25=\"Haben\",Rückstellungen!R25*-1,Rückstellungen!R25)","v":0},{"$f":"Rückstellungen!T25","v":{"$error":"#N/A"}},null,{"$f":"Rückstellungen!U25","v":0}]
[{"$f":"Rückstellungen!$B$3","v":"XXXX"},null,{"$f":"Rückstellungen!$J$5","v":"LG"},null,null,{"$f":"Rückstellungen!$M$4","v":"2024-12-31"},null,null,{"$f":"Rückstellungen!$I$4","v":"UB RA Rückstellungen"},{"$f":"Rückstellungen!O26","v":{"$error":"#N/A"}},{"$f":"IF(Rückstellungen!Q26=\"Haben\",50,40)","v":50},{"$f":"IF(Rückstellungen!Q26=\"Haben\",Rückstellungen!R26*-1,Rückstellungen!R26)","v":0},{"$f":"Rückstellungen!T26","v":{"$error":"#N/A"}},null,{"$f":"Rückstellungen!U26","v":0}]
[{"$f":"Rückstellungen!$B$3","v":"XXXX"},null,{"$f":"Rückstellungen!$J$5","v":"LG"},null,null,{"$f":"Rückstellungen!$M$4","v":"2024-12-31"},null,null,{"$f":"Rückstellungen!$I$4","v":"UB RA Rückstellungen"},{"$f":"Rückstellungen!O27","v":{"$error":"#N/A"}},{"$f":"IF(Rückstellungen!Q27=\"Haben\",50,40)","v":50},{"$f":"IF(Rückstellungen!Q27=\"Haben\",Rückstellungen!R27*-1,Rückstellungen!R27)","v":0},{"$f":"Rückstellungen!T27","v":{"$error":"#N/A"}},null,{"$f":"Rückstellungen!U27","v":0}]
[{"$f":"Rückstellungen!$B$3","v":"XXXX"},null,{"$f":"Rückstellungen!$J$5","v":"LG"},null,null,{"$f":"Rückstellungen!$M$4","v":"2024-12-31"},null,null,{"$f":"Rückstellungen!$I$4","v":"UB RA Rückstellungen"},{"$f":"Rückstellungen!O28","v":{"$error":"#N/A"}},{"$f":"IF(Rückstellungen!Q28=\"Haben\",50,40)","v":50},{"$f":"IF(Rückstellungen!Q28=\"Haben\",Rückstellungen!R28*-1,Rückstellungen!R28)","v":0},{"$f":"Rückstellungen!T28","v":{"$error":"#N/A"}},null,{"$f":"Rückstellungen!U28","v":0}]
[{"$f":"Rückstellungen!$B$3","v":"XXXX"},null,{"$f":"Rückstellungen!$J$5","v":"LG"},null,null,{"$f":"Rückstellungen!$M$4","v":"2024-12-31"},null,null,{"$f":"Rückstellungen!$I$4","v":"UB RA Rückstellungen"},{"$f":"Rückstellungen!O29","v":{"$error":"#N/A"}},{"$f":"IF(Rückstellungen!Q29=\"Haben\",50,40)","v":50},{"$f":"IF(Rückstellungen!Q29=\"Haben\",Rückstellungen!R29*-1,Rückstellungen!R29)","v":0},{"$f":"Rückstellungen!T29","v":{"$error":"#N/A"}},null,{"$f":"Rückstellungen!U29","v":0}]
[{"$f":"Rückstellungen!$B$3","v":"XXXX"},null,{"$f":"Rückstellungen!$J$5","v":"LG"},null,null,{"$f":"Rückstellungen!$M$4","v":"2024-12-31"},null,null,{"$f":"Rückstellungen!$I$4","v":"UB RA Rückstellungen"},{"$f":"Rückstellungen!O30","v":{"$error":"#N/A"}},{"$f":"IF(Rückstellungen!Q30=\"Haben\",50,40)","v":50},{"$f":"IF(Rückstellungen!Q30=\"Haben\",Rückstellungen!R30*-1,Rückstellungen!R30)","v":0},{"$f":"Rückstellungen!T30","v":{"$error":"#N/A"}},null,{"$f":"Rückstellungen!U30","v":0}]
[{"$f":"Rückstellungen!$B$3","v":"XXXX"},null,{"$f":"Rückstellungen!$J$5","v":"LG"},null,null,{"$f":"Rückstellungen!$M$4","v":"2024-12-31"},null,null,{"$f":"Rückstellungen!$I$4","v":"UB RA Rückstellungen"},{"$f":"Rückstellungen!O31","v":{"$error":"#N/A"}},{"$f":"IF(Rückstellungen!Q31=\"Haben\",50,40)","v":50},{"$f":"IF(Rückstellungen!Q31=\"Haben\",Rückstellungen!R31*-1,Rückstellungen!R31)","v":0},{"$f":"Rückstellungen!T31","v":{"$error":"#N/A"}},null,{"$f":"Rückstellungen!U31","v":0}]
[{"$f":"Rückstellungen!$B$3","v":"XXXX"},null,{"$f":"Rückstellungen!$J$5","v":"LG"},null,null,{"$f":"Rückstellungen!$M$4","v":"2024-12-31"},null,null,{"$f":"Rückstellungen!$I$4","v":"UB RA Rückstellungen"},{"$f":"Rückstellungen!O32","v":{"$error":"#N/A"}},{"$f":"IF(Rückstellungen!Q32=\"Haben\",50,40)","v":50},{"$f":"IF(Rückstellungen!Q32=\"Haben\",Rückstellungen!R32*-1,Rückstellungen!R32)","v":0},{"$f":"Rückstellungen!T32","v":{"$error":"#N/A"}},null,{"$f":"Rückstellungen!U32","v":0}]
[{"$f":"Rückstellungen!$B$3","v":"XXXX"},null,{"$f":"Rückstellungen!$J$5","v":"LG"},null,null,{"$f":"Rückstellungen!$M$4","v":"2024-12-31"},null,null,{"$f":"Rückstellungen!$I$4","v":"UB RA Rückstellungen"},{"$f":"Rückstellungen!O33","v":{"$error":"#N/A"}},{"$f":"IF(Rückstellungen!Q33=\"Haben\",50,40)","v":50},{"$f":"IF(Rückstellungen!Q33=\"Haben\",Rückstellungen!R33*-1,Rückstellungen!R33)","v":0},{"$f":"Rückstellungen!T33","v":{"$error":"#N/A"}},null,{"$f":"Rückstellungen!U33","v":0}]
[{"$f":"Rückstellungen!$B$3","v":"XXXX"},null,{"$f":"Rückstellungen!$J$5","v":"LG"},null,null,{"$f":"Rückstellungen!$M$4","v":"2024-12-31"},null,null,{"$f":"Rückstellungen!$I$4","v":"UB RA Rückstellungen"},{"$f":"Rückstellungen!O34","v":{"$error":"#N/A"}},{"$f":"IF(Rückstellungen!Q34=\"Haben\",50,40)","v":50},{"$f":"IF(Rückstellungen!Q34=\"Haben\",Rückstellungen!R34*-1,Rückstellungen!R34)","v":0},{"$f":"Rückstellungen!T34","v":{"$error":"#N/A"}},null,{"$f":"Rückstellungen!U34","v":0}]
[{"$f":"Rückstellungen!$B$3","v":"XXXX"},null,{"$f":"Rückstellungen!$J$5","v":"LG"},null,null,{"$f":"Rückstellungen!$M$4","v":"2024-12-31"},null,null,{"$f":"Rückstellungen!$I$4","v":"UB RA Rückstellungen"},{"$f":"Rückstellungen!O35","v":{"$error":"#N/A"}},{"$f":"IF(Rückstellungen!Q35=\"Haben\",50,40)","v":50},{"$f":"IF(Rückstellungen!Q35=\"Haben\",Rückstellungen!R35*-1,Rückstellungen!R35)","v":0},{"$f":"Rückstellungen!T35","v":{"$error":"#N/A"}},null,{"$f":"Rückstellungen!U35","v":0}]
[{"$f":"Rückstellungen!$B$3","v":"XXXX"},null,{"$f":"Rückstellungen!$J$5","v":"LG"},null,null,{"$f":"Rückstellungen!$M$4","v":"2024-12-31"},null,null,{"$f":"Rückstellungen!$I$4","v":"UB RA Rückstellungen"},{"$f":"Rückstellungen!O36","v":{"$error":"#N/A"}},{"$f":"IF(Rückstellungen!Q36=\"Haben\",50,40)","v":50},{"$f":"IF(Rückstellungen!Q36=\"Haben\",Rückstellungen!R36*-1,Rückstellungen!R36)","v":0},{"$f":"Rückstellungen!T36","v":{"$error":"#N/A"}},null,{"$f":"Rückstellungen!U36","v":0}]
[{"$f":"Rückstellungen!$B$3","v":"XXXX"},null,{"$f":"Rückstellungen!$J$5","v":"LG"},null,null,{"$f":"Rückstellungen!$M$4","v":"2024-12-31"},null,null,{"$f":"Rückstellungen!$I$4","v":"UB RA Rückstellungen"},{"$f":"Rückstellungen!O37","v":{"$error":"#N/A"}},{"$f":"IF(Rückstellungen!Q37=\"Haben\",50,40)","v":50},{"$f":"IF(Rückstellungen!Q37=\"Haben\",Rückstellungen!R37*-1,Rückstellungen!R37)","v":0},{"$f":"Rückstellungen!T37","v":{"$error":"#N/A"}},null,{"$f":"Rückstellungen!U37","v":0}]
[{"$f":"Rückstellungen!$B$3","v":"XXXX"},null,{"$f":"Rückstellungen!$J$5","v":"LG"},null,null,{"$f":"Rückstellungen!$M$4","v":"2024-12-31"},null,null,{"$f":"Rückstellungen!$I$4","v":"UB RA Rückstellungen"},{"$f":"Rückstellungen!O38","v":{"$error":"#N/A"}},{"$f":"IF(Rückstellungen!Q38=\"Haben\",50,40)","v":50},{"$f":"IF(Rückstellungen!Q38=\"Haben\",Rückstellungen!R38*-1,Rückstellungen!R38)","v":0},{"$f":"Rückstellungen!T38","v":{"$error":"#N/A"}},null,{"$f":"Rückstellungen!U38","v":0}]
[{"$f":"Rückstellungen!$B$3","v":"XXXX"},null,{"$f":"Rückstellungen!$J$5","v":"LG"},null,null,{"$f":"Rückstellungen!$M$4","v":"2024-12-31"},null,null,{"$f":"Rückstellungen!$I$4","v":"UB RA Rückstellungen"},{"$f":"Rückstellungen!O39","v":{"$error":"#N/A"}},{"$f":"IF(Rückstellungen!Q39=\"Haben\",50,40)","v":50},{"$f":"IF(Rückstellungen!Q39=\"Haben\",Rückstellungen!R39*-1,Rückstellungen!R39)","v":0},{"$f":"Rückstellungen!T39","v":{"$error":"#N/A"}},null,{"$f":"Rückstellungen!U39","v":0}]
[{"$f":"Rückstellungen!$B$3","v":"XXXX"},null,{"$f":"Rückstellungen!$J$5","v":"LG"},null,null,{"$f":"Rückstellungen!$M$4","v":"2024-12-31"},null,null,{"$f":"Rückstellungen!$I$4","v":"UB RA Rückstellungen"},{"$f":"Rückstellungen!O40","v":{"$error":"#N/A"}},{"$f":"IF(Rückstellungen!Q40=\"Haben\",50,40)","v":50},{"$f":"IF(Rückstellungen!Q40=\"Haben\",Rückstellungen!R40*-1,Rückstellungen!R40)","v":0},{"$f":"Rückstellungen!T40","v":{"$error":"#N/A"}},null,{"$f":"Rückstellungen!U40","v":0}]
[{"$f":"Rückstellungen!$B$3","v":"XXXX"},null,{"$f":"Rückstellungen!$J$5","v":"LG"},null,null,{"$f":"Rückstellungen!$M$4","v":"2024-12-31"},null,null,{"$f":"Rückstellungen!$I$4","v":"UB RA Rückstellungen"},{"$f":"Rückstellungen!O41","v":{"$error":"#N/A"}},{"$f":"IF(Rückstellungen!Q41=\"Haben\",50,40)","v":50},{"$f":"IF(Rückstellungen!Q41=\"Haben\",Rückstellungen!R41*-1,Rückstellungen!R41)","v":0},{"$f":"Rückstellungen!T41","v":{"$error":"#N/A"}},null,{"$f":"Rückstellungen!U41","v":0}]
[{"$f":"Rückstellungen!$B$3","v":"XXXX"},null,{"$f":"Rückstellungen!$J$5","v":"LG"},null,null,{"$f":"Rückstellungen!$M$4","v":"2024-12-31"},null,null,{"$f":"Rückstellungen!$I$4","v":"UB RA Rückstellungen"},{"$f":"Rückstellungen!O42","v":{"$error":"#N/A"}},{"$f":"IF(Rückstellungen!Q42=\"Haben\",50,40)","v":50},{"$f":"IF(Rückstellungen!Q42=\"Haben\",Rückstellungen!R42*-1,Rückstellungen!R42)","v":0},{"$f":"Rückstellungen!T42","v":{"$error":"#N/A"}},null,{"$f":"Rückstellungen!U42","v":0}]
[{"$f":"Rückstellungen!$B$3","v":"XXXX"},null,{"$f":"Rückstellungen!$J$5","v":"LG"},null,null,{"$f":"Rückstellungen!$M$4","v":"2024-12-31"},null,null,{"$f":"Rückstellungen!$I$4","v":"UB RA Rückstellungen"},{"$f":"Rückstellungen!O43","v":{"$error":"#N/A"}},{"$f":"IF(Rückstellungen!Q43=\"Haben\",50,40)","v":50},{"$f":"IF(Rückstellungen!Q43=\"Haben\",Rückstellungen!R43*-1,Rückstellungen!R43)","v":0},{"$f":"Rückstellungen!T43","v":{"$error":"#N/A"}},null,{"$f":"Rückstellungen!U43","v":0}]
[{"$f":"Rückstellungen!$B$3","v":"XXXX"},null,{"$f":"Rückstellungen!$J$5","v":"LG"},null,null,{"$f":"Rückstellungen!$M$4","v":"2024-12-31"},null,null,{"$f":"Rückstellungen!$I$4","v":"UB RA Rückstellungen"},{"$f":"Rückstellungen!O44","v":{"$error":"#N/A"}},{"$f":"IF(Rückstellungen!Q44=\"Haben\",50,40)","v":50},{"$f":"IF(Rückstellungen!Q44=\"Haben\",Rückstellungen!R44*-1,Rückstellungen!R44)","v":0},{"$f":"Rückstellungen!T44","v":{"$error":"#N/A"}},null,{"$f":"Rückstellungen!U44","v":0}]
[{"$f":"Rückstellungen!$B$3","v":"XXXX"},null,{"$f":"Rückstellungen!$J$5","v":"LG"},null,null,{"$f":"Rückstellungen!$M$4","v":"2024-12-31"},null,null,{"$f":"Rückstellungen!$I$4","v":"UB RA Rückstellungen"},{"$f":"Rückstellungen!O45","v":{"$error":"#N/A"}},{"$f":"IF(Rückstellungen!Q45=\"Haben\",50,40)","v":50},{"$f":"IF(Rückstellungen!Q45=\"Haben\",Rückstellungen!R45*-1,Rückstellungen!R45)","v":0},{"$f":"Rückstellungen!T45","v":{"$error":"#N/A"}},null,{"$f":"Rückstellungen!U45","v":0}]
[{"$f":"Rückstellungen!$B$3","v":"XXXX"},null,{"$f":"Rückstellungen!$J$5","v":"LG"},null,null,{"$f":"Rückstellungen!$M$4","v":"2024-12-31"},null,null,{"$f":"Rückstellungen!$I$4","v":"UB RA Rückstellungen"},{"$f":"Rückstellungen!O46","v":{"$error":"#N/A"}},{"$f":"IF(Rückstellungen!Q46=\"Haben\",50,40)","v":50},{"$f":"IF(Rückstellungen!Q46=\"Haben\",Rückstellungen!R46*-1,Rückstellungen!R46)","v":0},{"$f":"Rückstellungen!T46","v":{"$error":"#N/A"}},null,{"$f":"Rückstellungen!U46","v":0}]
[{"$f":"Rückstellungen!$B$3","v":"XXXX"},null,{"$f":"Rückstellungen!$J$5","v":"LG"},null,null,{"$f":"Rückstellungen!$M$4","v":"2024-12-31"},null,null,{"$f":"Rückstellungen!$I$4","v":"UB RA Rückstellungen"},{"$f":"Rückstellungen!O47","v":{"$error":"#N/A"}},{"$f":"IF(Rückstellungen!Q47=\"Haben\",50,40)","v":50},{"$f":"IF(Rückstellungen!Q47=\"Haben\",Rückstellungen!R47*-1,Rückstellungen!R47)","v":0},{"$f":"Rückstellungen!T47","v":{"$error":"#N/A"}},null,{"$f":"Rückstellungen!U47","v":0}]
[{"$f":"Rückstellungen!$B$3","v":"XXXX"},null,{"$f":"Rückstellungen!$J$5","v":"LG"},null,null,{"$f":"Rückstellungen!$M$4","v":"2024-12-31"},null,null,{"$f":"Rückstellungen!$I$4","v":"UB RA Rückstellungen"},{"$f":"Rückstellungen!O48","v":{"$error":"#N/A"}},{"$f":"IF(Rückstellungen!Q48=\"Haben\",50,40)","v":50},{"$f":"IF(Rückstellungen!Q48=\"Haben\",Rückstellungen!R48*-1,Rückstellungen!R48)","v":0},{"$f":"Rückstellungen!T48","v":{"$error":"#N/A"}},null,{"$f":"Rückstellungen!U48","v":0}]
[{"$f":"Rückstellungen!$B$3","v":"XXXX"},null,{"$f":"Rückstellungen!$J$5","v":"LG"},null,null,{"$f":"Rückstellungen!$M$4","v":"2024-12-31"},null,null,{"$f":"Rückstellungen!$I$4","v":"UB RA Rückstellungen"},{"$f":"Rückstellungen!O49","v":{"$error":"#N/A"}},{"$f":"IF(Rückstellungen!Q49=\"Haben\",50,40)","v":50},{"$f":"IF(Rückstellungen!Q49=\"Haben\",Rückstellungen!R49*-1,Rückstellungen!R49)","v":0},{"$f":"Rückstellungen!T49","v":{"$error":"#N/A"}},null,{"$f":"Rückstellungen!U49","v":0}]
[{"$f":"Rückstellungen!$B$3","v":"XXXX"},null,{"$f":"Rückstellungen!$J$5","v":"LG"},null,null,{"$f":"Rückstellungen!$M$4","v":"2024-12-31"},null,null,{"$f":"Rückstellungen!$I$4","v":"UB RA Rückstellungen"},{"$f":"Rückstellungen!O50","v":{"$error":"#N/A"}},{"$f":"IF(Rückstellungen!Q50=\"Haben\",50,40)","v":50},{"$f":"IF(Rückstellungen!Q50=\"Haben\",Rückstellungen!R50*-1,Rückstellungen!R50)","v":0},{"$f":"Rückstellungen!T50","v":{"$error":"#N/A"}},null,{"$f":"Rückstellungen!U50","v":0}]
[{"$f":"Rückstellungen!$B$3","v":"XXXX"},null,{"$f":"Rückstellungen!$J$5","v":"LG"},null,null,{"$f":"Rückstellungen!$M$4","v":"2024-12-31"},null,null,{"$f":"Rückstellungen!$I$4","v":"UB RA Rückstellungen"},{"$f":"Rückstellungen!O51","v":{"$error":"#N/A"}},{"$f":"IF(Rückstellungen!Q51=\"Haben\",50,40)","v":50},{"$f":"IF(Rückstellungen!Q51=\"Haben\",Rückstellungen!R51*-1,Rückstellungen!R51)","v":0},{"$f":"Rückstellungen!T51","v":{"$error":"#N/A"}},null,{"$f":"Rückstellungen!U51","v":0}]
[{"$f":"Rückstellungen!$B$3","v":"XXXX"},null,{"$f":"Rückstellungen!$J$5","v":"LG"},null,null,{"$f":"Rückstellungen!$M$4","v":"2024-12-31"},null,null,{"$f":"Rückstellungen!$I$4","v":"UB RA Rückstellungen"},{"$f":"Rückstellungen!O52","v":{"$error":"#N/A"}},{"$f":"IF(Rückstellungen!Q52=\"Haben\",50,40)","v":50},{"$f":"IF(Rückstellungen!Q52=\"Haben\",Rückstellungen!R52*-1,Rückstellungen!R52)","v":0},{"$f":"Rückstellungen!T52","v":{"$error":"#N/A"}},null,{"$f":"Rückstellungen!U52","v":0}]
[{"$f":"Rückstellungen!$B$3","v":"XXXX"},null,{"$f":"Rückstellungen!$J$5","v":"LG"},null,null,{"$f":"Rückstellungen!$M$4","v":"2024-12-31"},null,null,{"$f":"Rückstellungen!$I$4","v":"UB RA Rückstellungen"},{"$f":"Rückstellungen!O53","v":{"$error":"#N/A"}},{"$f":"IF(Rückstellungen!Q53=\"Haben\",50,40)","v":50},{"$f":"IF(Rückstellungen!Q53=\"Haben\",Rückstellungen!R53*-1,Rückstellungen!R53)","v":0},{"$f":"Rückstellungen!T53","v":{"$error":"#N/A"}},null,{"$f":"Rückstellungen!U53","v":0}]
[{"$f":"Rückstellungen!$B$3","v":"XXXX"},null,{"$f":"Rückstellungen!$J$5","v":"LG"},null,null,{"$f":"Rückstellungen!$M$4","v":"2024-12-31"},null,null,{"$f":"Rückstellungen!$I$4","v":"UB RA Rückstellungen"},{"$f":"Rückstellungen!O54","v":{"$error":"#N/A"}},{"$f":"IF(Rückstellungen!Q54=\"Haben\",50,40)","v":50},{"$f":"IF(Rückstellungen!Q54=\"Haben\",Rückstellungen!R54*-1,Rückstellungen!R54)","v":0},{"$f":"Rückstellungen!T54","v":{"$error":"#N/A"}},null,{"$f":"Rückstellungen!U54","v":0}]
[{"$f":"Rückstellungen!$B$3","v":"XXXX"},null,{"$f":"Rückstellungen!$J$5","v":"LG"},null,null,{"$f":"Rückstellungen!$M$4","v":"2024-12-31"},null,null,{"$f":"Rückstellungen!$I$4","v":"UB RA Rückstellungen"},{"$f":"Rückstellungen!O55","v":{"$error":"#N/A"}},{"$f":"IF(Rückstellungen!Q55=\"Haben\",50,40)","v":50},{"$f":"IF(Rückstellungen!Q55=\"Haben\",Rückstellungen!R55*-1,Rückstellungen!R55)","v":0},{"$f":"Rückstellungen!T55","v":{"$error":"#N/A"}},null,{"$f":"Rückstellungen!U55","v":0}]
[{"$f":"Rückstellungen!$B$3","v":"XXXX"},null,{"$f":"Rückstellungen!$J$5","v":"LG"},null,null,{"$f":"Rückstellungen!$M$4","v":"2024-12-31"},null,null,{"$f":"Rückstellungen!$I$4","v":"UB RA Rückstellungen"},{"$f":"Rückstellungen!O56","v":{"$error":"#N/A"}},{"$f":"IF(Rückstellungen!Q56=\"Haben\",50,40)","v":50},{"$f":"IF(Rückstellungen!Q56=\"Haben\",Rückstellungen!R56*-1,Rückstellungen!R56)","v":0},{"$f":"Rückstellungen!T56","v":{"$error":"#N/A"}},null,{"$f":"Rückstellungen!U56","v":0}]
[{"$f":"Rückstellungen!$B$3","v":"XXXX"},null,{"$f":"Rückstellungen!$J$5","v":"LG"},null,null,{"$f":"Rückstellungen!$M$4","v":"2024-12-31"},null,null,{"$f":"Rückstellungen!$I$4","v":"UB RA Rückstellungen"},{"$f":"Rückstellungen!O57","v":{"$error":"#N/A"}},{"$f":"IF(Rückstellungen!Q57=\"Haben\",50,40)","v":50},{"$f":"IF(Rückstellungen!Q57=\"Haben\",Rückstellungen!R57*-1,Rückstellungen!R57)","v":0},{"$f":"Rückstellungen!T57","v":{"$error":"#N/A"}},null,{"$f":"Rückstellungen!U57","v":0}]
[{"$f":"Rückstellungen!$B$3","v":"XXXX"},null,{"$f":"Rückstellungen!$J$5","v":"LG"},null,null,{"$f":"Rückstellungen!$M$4","v":"2024-12-31"},null,null,{"$f":"Rückstellungen!$I$4","v":"UB RA Rückstellungen"},{"$f":"Rückstellungen!O58","v":{"$error":"#N/A"}},{"$f":"IF(Rückstellungen!Q58=\"Haben\",50,40)","v":50},{"$f":"IF(Rückstellungen!Q58=\"Haben\",Rückstellungen!R58*-1,Rückstellungen!R58)","v":0},{"$f":"Rückstellungen!T58","v":{"$error":"#N/A"}},null,{"$f":"Rückstellungen!U58","v":0}]
[{"$f":"Rückstellungen!$B$3","v":"XXXX"},null,{"$f":"Rückstellungen!$J$5","v":"LG"},null,null,{"$f":"Rückstellungen!$M$4","v":"2024-12-31"},null,null,{"$f":"Rückstellungen!$I$4","v":"UB RA Rückstellungen"},{"$f":"Rückstellungen!O59","v":{"$error":"#N/A"}},{"$f":"IF(Rückstellungen!Q59=\"Haben\",50,40)","v":50},{"$f":"IF(Rückstellungen!Q59=\"Haben\",Rückstellungen!R59*-1,Rückstellungen!R59)","v":0},{"$f":"Rückstellungen!T59","v":{"$error":"#N/A"}},null,{"$f":"Rückstellungen!U59","v":0}]
[{"$f":"Rückstellungen!$B$3","v":"XXXX"},null,{"$f":"Rückstellungen!$J$5","v":"LG"},null,null,{"$f":"Rückstellungen!$M$4","v":"2024-12-31"},null,null,{"$f":"Rückstellungen!$I$4","v":"UB RA Rückstellungen"},{"$f":"Rückstellungen!O60","v":{"$error":"#N/A"}},{"$f":"IF(Rückstellungen!Q60=\"Haben\",50,40)","v":50},{"$f":"IF(Rückstellungen!Q60=\"Haben\",Rückstellungen!R60*-1,Rückstellungen!R60)","v":0},{"$f":"Rückstellungen!T60","v":{"$error":"#N/A"}},null,{"$f":"Rückstellungen!U60","v":0}]
[{"$f":"Rückstellungen!$B$3","v":"XXXX"},null,{"$f":"Rückstellungen!$J$5","v":"LG"},null,null,{"$f":"Rückstellungen!$M$4","v":"2024-12-31"},null,null,{"$f":"Rückstellungen!$I$4","v":"UB RA Rückstellungen"},{"$f":"Rückstellungen!O61","v":{"$error":"#N/A"}},{"$f":"IF(Rückstellungen!Q61=\"Haben\",50,40)","v":50},{"$f":"IF(Rückstellungen!Q61=\"Haben\",Rückstellungen!R61*-1,Rückstellungen!R61)","v":0},{"$f":"Rückstellungen!T61","v":{"$error":"#N/A"}},null,{"$f":"Rückstellungen!U61","v":0}]
[{"$f":"Rückstellungen!$B$3","v":"XXXX"},null,{"$f":"Rückstellungen!$J$5","v":"LG"},null,null,{"$f":"Rückstellungen!$M$4","v":"2024-12-31"},null,null,{"$f":"Rückstellungen!$I$4","v":"UB RA Rückstellungen"},{"$f":"Rückstellungen!O62","v":{"$error":"#N/A"}},{"$f":"IF(Rückstellungen!Q62=\"Haben\",50,40)","v":50},{"$f":"IF(Rückstellungen!Q62=\"Haben\",Rückstellungen!R62*-1,Rückstellungen!R62)","v":0},{"$f":"Rückstellungen!T62","v":{"$error":"#N/A"}},null,{"$f":"Rückstellungen!U62","v":0}]
[{"$f":"Rückstellungen!$B$3","v":"XXXX"},null,{"$f":"Rückstellungen!$J$5","v":"LG"},null,null,{"$f":"Rückstellungen!$M$4","v":"2024-12-31"},null,null,{"$f":"Rückstellungen!$I$4","v":"UB RA Rückstellungen"},{"$f":"Rückstellungen!O63","v":{"$error":"#N/A"}},{"$f":"IF(Rückstellungen!Q63=\"Haben\",50,40)","v":50},{"$f":"IF(Rückstellungen!Q63=\"Haben\",Rückstellungen!R63*-1,Rückstellungen!R63)","v":0},{"$f":"Rückstellungen!T63","v":{"$error":"#N/A"}},null,{"$f":"Rückstellungen!U63","v":0}]
[{"$f":"Rückstellungen!$B$3","v":"XXXX"},null,{"$f":"Rückstellungen!$J$5","v":"LG"},null,null,{"$f":"Rückstellungen!$M$4","v":"2024-12-31"},null,null,{"$f":"Rückstellungen!$I$4","v":"UB RA Rückstellungen"},{"$f":"Rückstellungen!O64","v":{"$error":"#N/A"}},{"$f":"IF(Rückstellungen!Q64=\"Haben\",50,40)","v":50},{"$f":"IF(Rückstellungen!Q64=\"Haben\",Rückstellungen!R64*-1,Rückstellungen!R64)","v":0},{"$f":"Rückstellungen!T64","v":{"$error":"#N/A"}},null,{"$f":"Rückstellungen!U64","v":0}]
[{"$f":"Rückstellungen!$B$3","v":"XXXX"},null,{"$f":"Rückstellungen!$J$5","v":"LG"},null,null,{"$f":"Rückstellungen!$M$4","v":"2024-12-31"},null,null,{"$f":"Rückstellungen!$I$4","v":"UB RA Rückstellungen"},{"$f":"Rückstellungen!O65","v":{"$error":"#N/A"}},{"$f":"IF(Rückstellungen!Q65=\"Haben\",50,40)","v":50},{"$f":"IF(Rückstellungen!Q65=\"Haben\",Rückstellungen!R65*-1,Rückstellungen!R65)","v":0},{"$f":"Rückstellungen!T65","v":{"$error":"#N/A"}},null,{"$f":"Rückstellungen!U65","v":0}]
[{"$f":"Rückstellungen!$B$3","v":"XXXX"},null,{"$f":"Rückstellungen!$J$5","v":"LG"},null,null,{"$f":"Rückstellungen!$M$4","v":"2024-12-31"},null,null,{"$f":"Rückstellungen!$I$4","v":"UB RA Rückstellungen"},{"$f":"Rückstellungen!O66","v":{"$error":"#N/A"}},{"$f":"IF(Rückstellungen!Q66=\"Haben\",50,40)","v":50},{"$f":"IF(Rückstellungen!Q66=\"Haben\",Rückstellungen!R66*-1,Rückstellungen!R66)","v":0},{"$f":"Rückstellungen!T66","v":{"$error":"#N/A"}},null,{"$f":"Rückstellungen!U66","v":0}]
[{"$f":"Rückstellungen!$B$3","v":"XXXX"},null,{"$f":"Rückstellungen!$J$5","v":"LG"},null,null,{"$f":"Rückstellungen!$M$4","v":"2024-12-31"},null,null,{"$f":"Rückstellungen!$I$4","v":"UB RA Rückstellungen"},{"$f":"Rückstellungen!O67","v":{"$error":"#N/A"}},{"$f":"IF(Rückstellungen!Q67=\"Haben\",50,40)","v":50},{"$f":"IF(Rückstellungen!Q67=\"Haben\",Rückstellungen!R67*-1,Rückstellungen!R67)","v":0},{"$f":"Rückstellungen!T67","v":{"$error":"#N/A"}},null,{"$f":"Rückstellungen!U67","v":0}]
[{"$f":"Rückstellungen!$B$3","v":"XXXX"},null,{"$f":"Rückstellungen!$J$5","v":"LG"},null,null,{"$f":"Rückstellungen!$M$4","v":"2024-12-31"},null,null,{"$f":"Rückstellungen!$I$4","v":"UB RA Rückstellungen"},{"$f":"Rückstellungen!O68","v":{"$error":"#N/A"}},{"$f":"IF(Rückstellungen!Q68=\"Haben\",50,40)","v":50},{"$f":"IF(Rückstellungen!Q68=\"Haben\",Rückstellungen!R68*-1,Rückstellungen!R68)","v":0},{"$f":"Rückstellungen!T68","v":{"$error":"#N/A"}},null,{"$f":"Rückstellungen!U68","v":0}]
[{"$f":"Rückstellungen!$B$3","v":"XXXX"},null,{"$f":"Rückstellungen!$J$5","v":"LG"},null,null,{"$f":"Rückstellungen!$M$4","v":"2024-12-31"},null,null,{"$f":"Rückstellungen!$I$4","v":"UB RA Rückstellungen"},{"$f":"Rückstellungen!O69","v":{"$error":"#N/A"}},{"$f":"IF(Rückstellungen!Q69=\"Haben\",50,40)","v":50},{"$f":"IF(Rückstellungen!Q69=\"Haben\",Rückstellungen!R69*-1,Rückstellungen!R69)","v":0},{"$f":"Rückstellungen!T69","v":{"$error":"#N/A"}},null,{"$f":"Rückstellungen!U69","v":0}]
[{"$f":"Rückstellungen!$B$3","v":"XXXX"},null,{"$f":"Rückstellungen!$J$5","v":"LG"},null,null,{"$f":"Rückstellungen!$M$4","v":"2024-12-31"},null,null,{"$f":"Rückstellungen!$I$4","v":"UB RA Rückstellungen"},{"$f":"Rückstellungen!O70","v":{"$error":"#N/A"}},{"$f":"IF(Rückstellungen!Q70=\"Haben\",50,40)","v":50},{"$f":"IF(Rückstellungen!Q70=\"Haben\",Rückstellungen!R70*-1,Rückstellungen!R70)","v":0},{"$f":"Rückstellungen!T70","v":{"$error":"#N/A"}},null,{"$f":"Rückstellungen!U70","v":0}]
[{"$f":"Rückstellungen!$B$3","v":"XXXX"},null,{"$f":"Rückstellungen!$J$5","v":"LG"},null,null,{"$f":"Rückstellungen!$M$4","v":"2024-12-31"},null,null,{"$f":"Rückstellungen!$I$4","v":"UB RA Rückstellungen"},{"$f":"Rückstellungen!O71","v":{"$error":"#N/A"}},{"$f":"IF(Rückstellungen!Q71=\"Haben\",50,40)","v":50},{"$f":"IF(Rückstellungen!Q71=\"Haben\",Rückstellungen!R71*-1,Rückstellungen!R71)","v":0},{"$f":"Rückstellungen!T71","v":{"$error":"#N/A"}},null,{"$f":"Rückstellungen!U71","v":0}]
[{"$f":"Rückstellungen!$B$3","v":"XXXX"},null,{"$f":"Rückstellungen!$J$5","v":"LG"},null,null,{"$f":"Rückstellungen!$M$4","v":"2024-12-31"},null,null,{"$f":"Rückstellungen!$I$4","v":"UB RA Rückstellungen"},{"$f":"Rückstellungen!O72","v":{"$error":"#N/A"}},{"$f":"IF(Rückstellungen!Q72=\"Haben\",50,40)","v":50},{"$f":"IF(Rückstellungen!Q72=\"Haben\",Rückstellungen!R72*-1,Rückstellungen!R72)","v":0},{"$f":"Rückstellungen!T72","v":{"$error":"#N/A"}},null,{"$f":"Rückstellungen!U72","v":0}]
[{"$f":"Rückstellungen!$B$3","v":"XXXX"},null,{"$f":"Rückstellungen!$J$5","v":"LG"},null,null,{"$f":"Rückstellungen!$M$4","v":"2024-12-31"},null,null,{"$f":"Rückstellungen!$I$4","v":"UB RA Rückstellungen"},{"$f":"Rückstellungen!O73","v":{"$error":"#N/A"}},{"$f":"IF(Rückstellungen!Q73=\"Haben\",50,40)","v":50},{"$f":"IF(Rückstellungen!Q73=\"Haben\",Rückstellungen!R73*-1,Rückstellungen!R73)","v":0},{"$f":"Rückstellungen!T73","v":{"$error":"#N/A"}},null,{"$f":"Rückstellungen!U73","v":0}]
[{"$f":"Rückstellungen!$B$3","v":"XXXX"},null,{"$f":"Rückstellungen!$J$5","v":"LG"},null,null,{"$f":"Rückstellungen!$M$4","v":"2024-12-31"},null,null,{"$f":"Rückstellungen!$I$4","v":"UB RA Rückstellungen"},{"$f":"Rückstellungen!O74","v":{"$error":"#N/A"}},{"$f":"IF(Rückstellungen!Q74=\"Haben\",50,40)","v":50},{"$f":"IF(Rückstellungen!Q74=\"Haben\",Rückstellungen!R74*-1,Rückstellungen!R74)","v":0},{"$f":"Rückstellungen!T74","v":{"$error":"#N/A"}},null,{"$f":"Rückstellungen!U74","v":0}]
[{"$f":"Rückstellungen!$B$3","v":"XXXX"},null,{"$f":"Rückstellungen!$J$5","v":"LG"},null,null,{"$f":"Rückstellungen!$M$4","v":"2024-12-31"},null,null,{"$f":"Rückstellungen!$I$4","v":"UB RA Rückstellungen"},{"$f":"Rückstellungen!O75","v":{"$error":"#N/A"}},{"$f":"IF(Rückstellungen!Q75=\"Haben\",50,40)","v":50},{"$f":"IF(Rückstellungen!Q75=\"Haben\",Rückstellungen!R75*-1,Rückstellungen!R75)","v":0},{"$f":"Rückstellungen!T75","v":{"$error":"#N/A"}},null,{"$f":"Rückstellungen!U75","v":0}]
[{"$f":"Rückstellungen!$B$3","v":"XXXX"},null,{"$f":"Rückstellungen!$J$5","v":"LG"},null,null,{"$f":"Rückstellungen!$M$4","v":"2024-12-31"},null,null,{"$f":"Rückstellungen!$I$4","v":"UB RA Rückstellungen"},{"$f":"Rückstellungen!O76","v":{"$error":"#N/A"}},{"$f":"IF(Rückstellungen!Q76=\"Haben\",50,40)","v":50},{"$f":"IF(Rückstellungen!Q76=\"Haben\",Rückstellungen!R76*-1,Rückstellungen!R76)","v":0},{"$f":"Rückstellungen!T76","v":{"$error":"#N/A"}},null,{"$f":"Rückstellungen!U76","v":0}]
[{"$f":"Rückstellungen!$B$3","v":"XXXX"},null,{"$f":"Rückstellungen!$J$5","v":"LG"},null,null,{"$f":"Rückstellungen!$M$4","v":"2024-12-31"},null,null,{"$f":"Rückstellungen!$I$4","v":"UB RA Rückstellungen"},{"$f":"Rückstellungen!O77","v":{"$error":"#N/A"}},{"$f":"IF(Rückstellungen!Q77=\"Haben\",50,40)","v":50},{"$f":"IF(Rückstellungen!Q77=\"Haben\",Rückstellungen!R77*-1,Rückstellungen!R77)","v":0},{"$f":"Rückstellungen!T77","v":{"$error":"#N/A"}},null,{"$f":"Rückstellungen!U77","v":0}]
[{"$f":"Rückstellungen!$B$3","v":"XXXX"},null,{"$f":"Rückstellungen!$J$5","v":"LG"},null,null,{"$f":"Rückstellungen!$M$4","v":"2024-12-31"},null,null,{"$f":"Rückstellungen!$I$4","v":"UB RA Rückstellungen"},{"$f":"Rückstellungen!O78","v":{"$error":"#N/A"}},{"$f":"IF(Rückstellungen!Q78=\"Haben\",50,40)","v":50},{"$f":"IF(Rückstellungen!Q78=\"Haben\",Rückstellungen!R78*-1,Rückstellungen!R78)","v":0},{"$f":"Rückstellungen!T78","v":{"$error":"#N/A"}},null,{"$f":"Rückstellungen!U78","v":0}]
[{"$f":"Rückstellungen!$B$3","v":"XXXX"},null,{"$f":"Rückstellungen!$J$5","v":"LG"},null,null,{"$f":"Rückstellungen!$M$4","v":"2024-12-31"},null,null,{"$f":"Rückstellungen!$I$4","v":"UB RA Rückstellungen"},{"$f":"Rückstellungen!O79","v":{"$error":"#N/A"}},{"$f":"IF(Rückstellungen!Q79=\"Haben\",50,40)","v":50},{"$f":"IF(Rückstellungen!Q79=\"Haben\",Rückstellungen!R79*-1,Rückstellungen!R79)","v":0},{"$f":"Rückstellungen!T79","v":{"$error":"#N/A"}},null,{"$f":"Rückstellungen!U79","v":0}]
[{"$f":"Rückstellungen!$B$3","v":"XXXX"},null,{"$f":"Rückstellungen!$J$5","v":"LG"},null,null,{"$f":"Rückstellungen!$M$4","v":"2024-12-31"},null,null,{"$f":"Rückstellungen!$I$4","v":"UB RA Rückstellungen"},{"$f":"Rückstellungen!O80","v":{"$error":"#N/A"}},{"$f":"IF(Rückstellungen!Q80=\"Haben\",50,40)","v":50},{"$f":"IF(Rückstellungen!Q80=\"Haben\",Rückstellungen!R80*-1,Rückstellungen!R80)","v":0},{"$f":"Rückstellungen!T80","v":{"$error":"#N/A"}},null,{"$f":"Rückstellungen!U80","v":0}]
[{"$f":"Rückstellungen!$B$3","v":"XXXX"},null,{"$f":"Rückstellungen!$J$5","v":"LG"},null,null,{"$f":"Rückstellungen!$M$4","v":"2024-12-31"},null,null,{"$f":"Rückstellungen!$I$4","v":"UB RA Rückstellungen"},{"$f":"Rückstellungen!O81","v":{"$error":"#N/A"}},{"$f":"IF(Rückstellungen!Q81=\"Haben\",50,40)","v":50},{"$f":"IF(Rückstellungen!Q81=\"Haben\",Rückstellungen!R81*-1,Rückstellungen!R81)","v":0},{"$f":"Rückstellungen!T81","v":{"$error":"#N/A"}},null,{"$f":"Rückstellungen!U81","v":0}]
[{"$f":"Rückstellungen!$B$3","v":"XXXX"},null,{"$f":"Rückstellungen!$J$5","v":"LG"},null,null,{"$f":"Rückstellungen!$M$4","v":"2024-12-31"},null,null,{"$f":"Rückstellungen!$I$4","v":"UB RA Rückstellungen"},{"$f":"Rückstellungen!O82","v":{"$error":"#N/A"}},{"$f":"IF(Rückstellungen!Q82=\"Haben\",50,40)","v":50},{"$f":"IF(Rückstellungen!Q82=\"Haben\",Rückstellungen!R82*-1,Rückstellungen!R82)","v":0},{"$f":"Rückstellungen!T82","v":{"$error":"#N/A"}},null,{"$f":"Rückstellungen!U82","v":0}]
[{"$f":"Rückstellungen!$B$3","v":"XXXX"},null,{"$f":"Rückstellungen!$J$5","v":"LG"},null,null,{"$f":"Rückstellungen!$M$4","v":"2024-12-31"},null,null,{"$f":"Rückstellungen!$I$4","v":"UB RA Rückstellungen"},{"$f":"Rückstellungen!O83","v":{"$error":"#N/A"}},{"$f":"IF(Rückstellungen!Q83=\"Haben\",50,40)","v":50},{"$f":"IF(Rückstellungen!Q83=\"Haben\",Rückstellungen!R83*-1,Rückstellungen!R83)","v":0},{"$f":"Rückstellungen!T83","v":{"$error":"#N/A"}},null,{"$f":"Rückstellungen!U83","v":0}]
[{"$f":"Rückstellungen!$B$3","v":"XXXX"},null,{"$f":"Rückstellungen!$J$5","v":"LG"},null,null,{"$f":"Rückstellungen!$M$4","v":"2024-12-31"},null,null,{"$f":"Rückstellungen!$I$4","v":"UB RA Rückstellungen"},{"$f":"Rückstellungen!O84","v":{"$error":"#N/A"}},{"$f":"IF(Rückstellungen!Q84=\"Haben\",50,40)","v":50},{"$f":"IF(Rückstellungen!Q84=\"Haben\",Rückstellungen!R84*-1,Rückstellungen!R84)","v":0},{"$f":"Rückstellungen!T84","v":{"$error":"#N/A"}},null,{"$f":"Rückstellungen!U84","v":0}]
[{"$f":"Rückstellungen!$B$3","v":"XXXX"},null,{"$f":"Rückstellungen!$J$5","v":"LG"},null,null,{"$f":"Rückstellungen!$M$4","v":"2024-12-31"},null,null,{"$f":"Rückstellungen!$I$4","v":"UB RA Rückstellungen"},{"$f":"Rückstellungen!O85","v":{"$error":"#N/A"}},{"$f":"IF(Rückstellungen!Q85=\"Haben\",50,40)","v":50},{"$f":"IF(Rückstellungen!Q85=\"Haben\",Rückstellungen!R85*-1,Rückstellungen!R85)","v":0},{"$f":"Rückstellungen!T85","v":{"$error":"#N/A"}},null,{"$f":"Rückstellungen!U85","v":0}]
[{"$f":"Rückstellungen!$B$3","v":"XXXX"},null,{"$f":"Rückstellungen!$J$5","v":"LG"},null,null,{"$f":"Rückstellungen!$M$4","v":"2024-12-31"},null,null,{"$f":"Rückstellungen!$I$4","v":"UB RA Rückstellungen"},{"$f":"Rückstellungen!O86","v":{"$error":"#N/A"}},{"$f":"IF(Rückstellungen!Q86=\"Haben\",50,40)","v":50},{"$f":"IF(Rückstellungen!Q86=\"Haben\",Rückstellungen!R86*-1,Rückstellungen!R86)","v":0},{"$f":"Rückstellungen!T86","v":{"$error":"#N/A"}},null,{"$f":"Rückstellungen!U86","v":0}]
[{"$f":"Rückstellungen!$B$3","v":"XXXX"},null,{"$f":"Rückstellungen!$J$5","v":"LG"},null,null,{"$f":"Rückstellungen!$M$4","v":"2024-12-31"},null,null,{"$f":"Rückstellungen!$I$4","v":"UB RA Rückstellungen"},{"$f":"Rückstellungen!O87","v":{"$error":"#N/A"}},{"$f":"IF(Rückstellungen!Q87=\"Haben\",50,40)","v":50},{"$f":"IF(Rückstellungen!Q87=\"Haben\",Rückstellungen!R87*-1,Rückstellungen!R87)","v":0},{"$f":"Rückstellungen!T87","v":{"$error":"#N/A"}},null,{"$f":"Rückstellungen!U87","v":0}]
[{"$f":"Rückstellungen!$B$3","v":"XXXX"},null,{"$f":"Rückstellungen!$J$5","v":"LG"},null,null,{"$f":"Rückstellungen!$M$4","v":"2024-12-31"},null,null,{"$f":"Rückstellungen!$I$4","v":"UB RA Rückstellungen"},{"$f":"Rückstellungen!O88","v":{"$error":"#N/A"}},{"$f":"IF(Rückstellungen!Q88=\"Haben\",50,40)","v":50},{"$f":"IF(Rückstellungen!Q88=\"Haben\",Rückstellungen!R88*-1,Rückstellungen!R88)","v":0},{"$f":"Rückstellungen!T88","v":{"$error":"#N/A"}},null,{"$f":"Rückstellungen!U88","v":0}]
[{"$f":"Rückstellungen!$B$3","v":"XXXX"},null,{"$f":"Rückstellungen!$J$5","v":"LG"},null,null,{"$f":"Rückstellungen!$M$4","v":"2024-12-31"},null,null,{"$f":"Rückstellungen!$I$4","v":"UB RA Rückstellungen"},{"$f":"Rückstellungen!O89","v":{"$error":"#N/A"}},{"$f":"IF(Rückstellungen!Q89=\"Haben\",50,40)","v":50},{"$f":"IF(Rückstellungen!Q89=\"Haben\",Rückstellungen!R89*-1,Rückstellungen!R89)","v":0},{"$f":"Rückstellungen!T89","v":{"$error":"#N/A"}},null,{"$f":"Rückstellungen!U89","v":0}]
[{"$f":"Rückstellungen!$B$3","v":"XXXX"},null,{"$f":"Rückstellungen!$J$5","v":"LG"},null,null,{"$f":"Rückstellungen!$M$4","v":"2024-12-31"},null,null,{"$f":"Rückstellungen!$I$4","v":"UB RA Rückstellungen"},{"$f":"Rückstellungen!O90","v":{"$error":"#N/A"}},{"$f":"IF(Rückstellungen!Q90=\"Haben\",50,40)","v":50},{"$f":"IF(Rückstellungen!Q90=\"Haben\",Rückstellungen!R90*-1,Rückstellungen!R90)","v":0},{"$f":"Rückstellungen!T90","v":{"$error":"#N/A"}},null,{"$f":"Rückstellungen!U90","v":0}]
[{"$f":"Rückstellungen!$B$3","v":"XXXX"},null,{"$f":"Rückstellungen!$J$5","v":"LG"},null,null,{"$f":"Rückstellungen!$M$4","v":"2024-12-31"},null,null,{"$f":"Rückstellungen!$I$4","v":"UB RA Rückstellungen"},{"$f":"Rückstellungen!O91","v":{"$error":"#N/A"}},{"$f":"IF(Rückstellungen!Q91=\"Haben\",50,40)","v":50},{"$f":"IF(Rückstellungen!Q91=\"Haben\",Rückstellungen!R91*-1,Rückstellungen!R91)","v":0},{"$f":"Rückstellungen!T91","v":{"$error":"#N/A"}},null,{"$f":"Rückstellungen!U91","v":0}]
[{"$f":"Rückstellungen!$B$3","v":"XXXX"},null,{"$f":"Rückstellungen!$J$5","v":"LG"},null,null,{"$f":"Rückstellungen!$M$4","v":"2024-12-31"},null,null,{"$f":"Rückstellungen!$I$4","v":"UB RA Rückstellungen"},{"$f":"Rückstellungen!O92","v":{"$error":"#N/A"}},{"$f":"IF(Rückstellungen!Q92=\"Haben\",50,40)","v":50},{"$f":"IF(Rückstellungen!Q92=\"Haben\",Rückstellungen!R92*-1,Rückstellungen!R92)","v":0},{"$f":"Rückstellungen!T92","v":{"$error":"#N/A"}},null,{"$f":"Rückstellungen!U92","v":0}]
[{"$f":"Rückstellungen!$B$3","v":"XXXX"},null,{"$f":"Rückstellungen!$J$5","v":"LG"},null,null,{"$f":"Rückstellungen!$M$4","v":"2024-12-31"},null,null,{"$f":"Rückstellungen!$I$4","v":"UB RA Rückstellungen"},{"$f":"Rückstellungen!O93","v":{"$error":"#N/A"}},{"$f":"IF(Rückstellungen!Q93=\"Haben\",50,40)","v":50},{"$f":"IF(Rückstellungen!Q93=\"Haben\",Rückstellungen!R93*-1,Rückstellungen!R93)","v":0},{"$f":"Rückstellungen!T93","v":{"$error":"#N/A"}},null,{"$f":"Rückstellungen!U93","v":0}]
[{"$f":"Rückstellungen!$B$3","v":"XXXX"},null,{"$f":"Rückstellungen!$J$5","v":"LG"},null,null,{"$f":"Rückstellungen!$M$4","v":"2024-12-31"},null,null,{"$f":"Rückstellungen!$I$4","v":"UB RA Rückstellungen"},{"$f":"Rückstellungen!O94","v":{"$error":"#N/A"}},{"$f":"IF(Rückstellungen!Q94=\"Haben\",50,40)","v":50},{"$f":"IF(Rückstellungen!Q94=\"Haben\",Rückstellungen!R94*-1,Rückstellungen!R94)","v":0},{"$f":"Rückstellungen!T94","v":{"$error":"#N/A"}},null,{"$f":"Rückstellungen!U94","v":0}]
[{"$f":"Rückstellungen!$B$3","v":"XXXX"},null,{"$f":"Rückstellungen!$J$5","v":"LG"},null,null,{"$f":"Rückstellungen!$M$4","v":"2024-12-31"},null,null,{"$f":"Rückstellungen!$I$4","v":"UB RA Rückstellungen"},{"$f":"Rückstellungen!O95","v":{"$error":"#N/A"}},{"$f":"IF(Rückstellungen!Q95=\"Haben\",50,40)","v":50},{"$f":"IF(Rückstellungen!Q95=\"Haben\",Rückstellungen!R95*-1,Rückstellungen!R95)","v":0},{"$f":"Rückstellungen!T95","v":{"$error":"#N/A"}},null,{"$f":"Rückstellungen!U95","v":0}]
[{"$f":"Rückstellungen!$B$3","v":"XXXX"},null,{"$f":"Rückstellungen!$J$5","v":"LG"},null,null,{"$f":"Rückstellungen!$M$4","v":"2024-12-31"},null,null,{"$f":"Rückstellungen!$I$4","v":"UB RA Rückstellungen"},{"$f":"Rückstellungen!O96","v":{"$error":"#N/A"}},{"$f":"IF(Rückstellungen!Q96=\"Haben\",50,40)","v":50},{"$f":"IF(Rückstellungen!Q96=\"Haben\",Rückstellungen!R96*-1,Rückstellungen!R96)","v":0},{"$f":"Rückstellungen!T96","v":{"$error":"#N/A"}},null,{"$f":"Rückstellungen!U96","v":0}]
[{"$f":"Rückstellungen!$B$3","v":"XXXX"},null,{"$f":"Rückstellungen!$J$5","v":"LG"},null,null,{"$f":"Rückstellungen!$M$4","v":"2024-12-31"},null,null,{"$f":"Rückstellungen!$I$4","v":"UB RA Rückstellungen"},{"$f":"Rückstellungen!O97","v":{"$error":"#N/A"}},{"$f":"IF(Rückstellungen!Q97=\"Haben\",50,40)","v":50},{"$f":"IF(Rückstellungen!Q97=\"Haben\",Rückstellungen!R97*-1,Rückstellungen!R97)","v":0},{"$f":"Rückstellungen!T97","v":{"$error":"#N/A"}},null,{"$f":"Rückstellungen!U97","v":0}]
[{"$f":"Rückstellungen!$B$3","v":"XXXX"},null,{"$f":"Rückstellungen!$J$5","v":"LG"},null,null,{"$f":"Rückstellungen!$M$4","v":"2024-12-31"},null,null,{"$f":"Rückstellungen!$I$4","v":"UB RA Rückstellungen"},{"$f":"Rückstellungen!O98","v":{"$error":"#N/A"}},{"$f":"IF(Rückstellungen!Q98=\"Haben\",50,40)","v":50},{"$f":"IF(Rückstellungen!Q98=\"Haben\",Rückstellungen!R98*-1,Rückstellungen!R98)","v":0},{"$f":"Rückstellungen!T98","v":{"$error":"#N/A"}},null,{"$f":"Rückstellungen!U98","v":0}]
[{"$f":"Rückstellungen!$B$3","v":"XXXX"},null,{"$f":"Rückstellungen!$J$5","v":"LG"},null,null,{"$f":"Rückstellungen!$M$4","v":"2024-12-31"},null,null,{"$f":"Rückstellungen!$I$4","v":"UB RA Rückstellungen"},{"$f":"Rückstellungen!O99","v":{"$error":"#N/A"}},{"$f":"IF(Rückstellungen!Q99=\"Haben\",50,40)","v":50},{"$f":"IF(Rückstellungen!Q99=\"Haben\",Rückstellungen!R99*-1,Rückstellungen!R99)","v":0},{"$f":"Rückstellungen!T99","v":{"$error":"#N/A"}},null,{"$f":"Rückstellungen!U99","v":0}]
[{"$f":"Rückstellungen!$B$3","v":"XXXX"},null,{"$f":"Rückstellungen!$J$5","v":"LG"},null,null,{"$f":"Rückstellungen!$M$4","v":"2024-12-31"},null,null,{"$f":"Rückstellungen!$I$4","v":"UB RA Rückstellungen"},{"$f":"Rückstellungen!O100","v":{"$error":"#N/A"}},{"$f":"IF(Rückstellungen!Q100=\"Haben\",50,40)","v":50},{"$f":"IF(Rückstellungen!Q100=\"Haben\",Rückstellungen!R100*-1,Rückstellungen!R100)","v":0},{"$f":"Rückstellungen!T100","v":{"$error":"#N/A"}},null,{"$f":"Rückstellungen!U100","v":0}]
[{"$f":"Rückstellungen!$B$3","v":"XXXX"},null,{"$f":"Rückstellungen!$J$5","v":"LG"},null,null,{"$f":"Rückstellungen!$M$4","v":"2024-12-31"},null,null,{"$f":"Rückstellungen!$I$4","v":"UB RA Rückstellungen"},{"$f":"Rückstellungen!O101","v":{"$error":"#N/A"}},{"$f":"IF(Rückstellungen!Q101=\"Haben\",50,40)","v":50},{"$f":"IF(Rückstellungen!Q101=\"Haben\",Rückstellungen!R101*-1,Rückstellungen!R101)","v":0},{"$f":"Rückstellungen!T101","v":{"$error":"#N/A"}},null,{"$f":"Rückstellungen!U101","v":0}]
[{"$f":"Rückstellungen!$B$3","v":"XXXX"},null,{"$f":"Rückstellungen!$J$5","v":"LG"},null,null,{"$f":"Rückstellungen!$M$4","v":"2024-12-31"},null,null,{"$f":"Rückstellungen!$I$4","v":"UB RA Rückstellungen"},{"$f":"Rückstellungen!O102","v":{"$error":"#N/A"}},{"$f":"IF(Rückstellungen!Q102=\"Haben\",50,40)","v":50},{"$f":"IF(Rückstellungen!Q102=\"Haben\",Rückstellungen!R102*-1,Rückstellungen!R102)","v":0},{"$f":"Rückstellungen!T102","v":{"$error":"#N/A"}},null,{"$f":"Rückstellungen!U102","v":0}]
[{"$f":"Rückstellungen!$B$3","v":"XXXX"},null,{"$f":"Rückstellungen!$J$5","v":"LG"},null,null,{"$f":"Rückstellungen!$M$4","v":"2024-12-31"},null,null,{"$f":"Rückstellungen!$I$4","v":"UB RA Rückstellungen"},{"$f":"Rückstellungen!O103","v":{"$error":"#N/A"}},{"$f":"IF(Rückstellungen!Q103=\"Haben\",50,40)","v":50},{"$f":"IF(Rückstellungen!Q103=\"Haben\",Rückstellungen!R103*-1,Rückstellungen!R103)","v":0},{"$f":"Rückstellungen!T103","v":{"$error":"#N/A"}},null,{"$f":"Rückstellungen!U103","v":0}]
[{"$f":"Rückstellungen!$B$3","v":"XXXX"},null,{"$f":"Rückstellungen!$J$5","v":"LG"},null,null,{"$f":"Rückstellungen!$M$4","v":"2024-12-31"},null,null,{"$f":"Rückstellungen!$I$4","v":"UB RA Rückstellungen"},{"$f":"Rückstellungen!O104","v":{"$error":"#N/A"}},{"$f":"IF(Rückstellungen!Q104=\"Haben\",50,40)","v":50},{"$f":"IF(Rückstellungen!Q104=\"Haben\",Rückstellungen!R104*-1,Rückstellungen!R104)","v":0},{"$f":"Rückstellungen!T104","v":{"$error":"#N/A"}},null,{"$f":"Rückstellungen!U104","v":0}]
[{"$f":"Rückstellungen!$B$3","v":"XXXX"},null,{"$f":"Rückstellungen!$J$5","v":"LG"},null,null,{"$f":"Rückstellungen!$M$4","v":"2024-12-31"},null,null,{"$f":"Rückstellungen!$I$4","v":"UB RA Rückstellungen"},{"$f":"Rückstellungen!O105","v":{"$error":"#N/A"}},{"$f":"IF(Rückstellungen!Q105=\"Haben\",50,40)","v":50},{"$f":"IF(Rückstellungen!Q105=\"Haben\",Rückstellungen!R105*-1,Rückstellungen!R105)","v":0},{"$f":"Rückstellungen!T105","v":{"$error":"#N/A"}},null,{"$f":"Rückstellungen!U105","v":0}]
[{"$f":"Rückstellungen!$B$3","v":"XXXX"},null,{"$f":"Rückstellungen!$J$5","v":"LG"},null,null,{"$f":"Rückstellungen!$M$4","v":"2024-12-31"},null,null,{"$f":"Rückstellungen!$I$4","v":"UB RA Rückstellungen"},{"$f":"Rückstellungen!O106","v":{"$error":"#N/A"}},{"$f":"IF(Rückstellungen!Q106=\"Haben\",50,40)","v":50},{"$f":"IF(Rückstellungen!Q106=\"Haben\",Rückstellungen!R106*-1,Rückstellungen!R106)","v":0},{"$f":"Rückstellungen!T106","v":{"$error":"#N/A"}},null,{"$f":"Rückstellungen!U106","v":0}]
[{"$f":"Rückstellungen!$B$3","v":"XXXX"},null,{"$f":"Rückstellungen!$J$5","v":"LG"},null,null,{"$f":"Rückstellungen!$M$4","v":"2024-12-31"},null,null,{"$f":"Rückstellungen!$I$4","v":"UB RA Rückstellungen"},{"$f":"Rückstellungen!O107","v":{"$error":"#N/A"}},{"$f":"IF(Rückstellungen!Q107=\"Haben\",50,40)","v":50},{"$f":"IF(Rückstellungen!Q107=\"Haben\",Rückstellungen!R107*-1,Rückstellungen!R107)","v":0},{"$f":"Rückstellungen!T107","v":{"$error":"#N/A"}},null,{"$f":"Rückstellungen!U107","v":0}]

{"sheet":"Datei_für_Flexiblen_Verbucher","index":3,"n_rows":7,"n_cols":16,"rows_kept":7,"cut":false,"hidden":false,"merged":[]}
["Buchungskreis/BUKRS",null,"Belegart/BLART","Steuer rechnen/XMWST",null,"Datum/BUDAT",null,null,"Belegkopftext/BKTXT","Konto/NEWKO","BS","Betrag/WRBTR","Text/SGTXT","Steuerkennzeichen/MWSKZ","Kostenstelle/KOSTL","Auftrag/AUFNR"]
["T015",null,"LG",null,null,"2022-12-31",null,null,"UB RA Rückstellungen",381000,50,300,"UB RA Urlaub",null,10000]
["T015",null,"LG",null,null,"2022-12-31",null,null,"UB RA Rückstellungen",381000,50,100,"UB RA Urlaub",null,22000]
["T015",null,"LG",null,null,"2022-12-31",null,null,"UB RA Rückstellungen",381000,40,278,"UB RA Urlaub",null,25000]
["T015",null,"LG",null,null,"2022-12-31",null,null,"UB RA Rückstellungen",593000,40,300,"UB RA Urlaub",null,10000]
["T015",null,"LG",null,null,"2022-12-31",null,null,"UB RA Rückstellungen",593000,40,100,"UB RA Urlaub",null,22000]
["T015",null,"LG",null,null,"2022-12-31",null,null,"UB RA Rückstellungen",817200,50,278,"UB RA Urlaub",null,25000]